Workbook

Sheet SLA
A1: SAÍDA | B1: DATA | C1: LOCAL | D1: PLACA | E1: ESPÉCIE | F1: FOLHA | G1: NF | H1: RF | I1: NUF | J1: OBJETO | K1: FRAGMENTO | L1: TIPO | M1: ÁREA (PX2) | N1: ALTURA DA IMAGEM | O1: LARGURA DA IMAGEM | P1: ÁREA (mm2) | Q1: OBS
A2: 0 | B2: 2008-05-27 | C2: KM_37 | D2: 242474 | E2: Aniba_burchellii/panurensis_s.l. | F2: SIMP | G2: 5 | H2: 1 | I2: 5 | J2: F | K2: 1 | L2: AF | M2: 92937 | N2: 1268 | O2: 1748 | P2: =66000*M2/(N2*O2) -> 2767.399786
A3: 0 | B3: 2008-05-27 | C3: KM_37 | D3: 242474 | E3: Aniba_burchellii/panurensis_s.l. | F3: SIMP | G3: 5 | H3: 1 | I3: 5 | J3: F | K3: 2 | L3: AF | M3: 112733 | N3: 1268 | O3: 1748 | P3: 3356.868417
A4: 0 | B4: 2008-05-27 | C4: KM_37 | D4: 242474 | E4: Aniba_burchellii/panurensis_s.l. | F4: SIMP | G4: 5 | H4: 1 | I4: 5 | J4: F | K4: 3 | L4: AF | M4: 97961 | N4: 1268 | O4: 1748 | P4: 2917.000231
A5: 0 | B5: 2008-05-27 | C5: KM_37 | D5: 242474 | E5: Aniba_burchellii/panurensis_s.l. | F5: SIMP | G5: 5 | H5: 1 | I5: 5 | J5: F | K5: 4 | L5: AF | M5: 105615 | N5: 1268 | O5: 1748 | P5: 3144.914603
A6: 0 | B6: 2008-05-27 | C6: KM_37 | D6: 242474 | E6: Aniba_burchellii/panurensis_s.l. | F6: SIMP | G6: 5 | H6: 1 | I6: 5 | J6: F | K6: 5 | L6: AF | M6: 81178 | N6: 1268 | O6: 1748 | P6: 2417.250179
A7: 0 | B7: 2008-05-27 | C7: KM_37 | D7: 242474 | E7: Aniba_burchellii/panurensis_s.l. | F7: SIMP | G7: 5 | H7: 1 | I7: 5 | J7: P | K7: 6 | L7: AF | M7: 825 | N7: 1268 | O7: 1748 | P7: 24.56615582
A8: 0 | B8: 2008-05-27 | C8: KM_37 | D8: 242474 | E8: Aniba_burchellii/panurensis_s.l. | F8: SIMP | G8: 5 | H8: 1 | I8: 5 | J8: P | K8: 7 | L8: AF | M8: 766 | N8: 1268 | O8: 1748 | P8: 22.80930347
A9: 0 | B9: 2008-05-27 | C9: KM_37 | D9: 242474 | E9: Aniba_burchellii/panurensis_s.l. | F9: SIMP | G9: 5 | H9: 1 | I9: 5 | J9: P | K9: 8 | L9: AF | M9: 690 | N9: 1268 | O9: 1748 | P9: 20.54623942
A10: 0 | B10: 2008-05-27 | C10: KM_37 | D10: 242474 | E10: Aniba_burchellii/panurensis_s.l. | F10: SIMP | G10: 5 | H10: 1 | I10: 5 | J10: P | K10: 9 | L10: AF | M10: 868 | N10: 1268 | O10: 1748 | P10: 25.84657364
A11: 0 | B11: 2008-05-27 | C11: KM_37 | D11: 242474 | E11: Aniba_burchellii/panurensis_s.l. | F11: SIMP | G11: 5 | H11: 1 | I11: 5 | J11: P | K11: 10 | L11: AF | M11: 745 | N11: 1268 | O11: 1748 | P11: 22.18398314
A12: 0 | B12: 2008-01-28 | C12: KM_41 | D12: 288 | E12: Aniba_canelilla_(Kunth)_Mez | F12: SIMP | G12: 5 | H12: 1 | I12: 5 | J12: F | K12: 1 | L12: AF | M12: 2889298 | N12: 5072 | O12: 6990 | P12: 5378.731333
A13: 0 | B13: 2008-01-28 | C13: KM_41 | D13: 288 | E13: Aniba_canelilla_(Kunth)_Mez | F13: SIMP | G13: 5 | H13: 1 | I13: 5 | J13: F | K13: 2 | L13: AF | M13: 4495676 | N13: 5072 | O13: 6990 | P13: 8369.1725
A14: 0 | B14: 2008-01-28 | C14: KM_41 | D14: 288 | E14: Aniba_canelilla_(Kunth)_Mez | F14: SIMP | G14: 5 | H14: 1 | I14: 5 | J14: F | K14: 3 | L14: AF | M14: 3304651 | N14: 5072 | O14: 6990 | P14: 6151.954516
A15: 0 | B15: 2008-01-28 | C15: KM_41 | D15: 288 | E15: Aniba_canelilla_(Kunth)_Mez | F15: SIMP | G15: 5 | H15: 1 | I15: 5 | J15: F | K15: 4 | L15: AF | M15: 2556398 | N15: 5072 | O15: 6990 | P15: 4759.00306
A16: 0 | B16: 2008-01-28 | C16: KM_41 | D16: 288 | E16: Aniba_canelilla_(Kunth)_Mez | F16: SIMP | G16: 5 | H16: 1 | I16: 5 | J16: F | K16: 5 | L16: AF | M16: 2056718 | N16: 5072 | O16: 6990 | P16: 3828.79632
A17: 0 | B17: 2008-01-28 | C17: KM_41 | D17: 288 | E17: Aniba_canelilla_(Kunth)_Mez | F17: SIMP | G17: 5 | H17: 1 | I17: 5 | J17: P | K17: 6 | L17: AF | M17: 32690 | N17: 5072 | O17: 6990 | P17: 60.85586439
A18: 0 | B18: 2008-01-28 | C18: KM_41 | D18: 288 | E18: Aniba_canelilla_(Kunth)_Mez | F18: SIMP | G18: 5 | H18: 1 | I18: 5 | J18: P | K18: 7 | L18: AF | M18: 36760 | N18: 5072 | O18: 6990 | P18: 68.43259636
A19: 0 | B19: 2008-01-28 | C19: KM_41 | D19: 288 | E19: Aniba_canelilla_(Kunth)_Mez | F19: SIMP | G19: 5 | H19: 1 | I19: 5 | J19: P | K19: 8 | L19: AF | M19: 30642 | N19: 5072 | O19: 6990 | P19: 57.04329755
A20: 0 | B20: 2008-01-28 | C20: KM_41 | D20: 288 | E20: Aniba_canelilla_(Kunth)_Mez | F20: SIMP | G20: 5 | H20: 1 | I20: 5 | J20: P | K20: 9 | L20: AF | M20: 19411 | N20: 5072 | O20: 6990 | P20: 36.13561284
A21: 0 | B21: 2008-01-28 | C21: KM_41 | D21: 288 | E21: Aniba_canelilla_(Kunth)_Mez | F21: SIMP | G21: 5 | H21: 1 | I21: 5 | J21: P | K21: 10 | L21: AF | M21: 23901 | N21: 5072 | O21: 6990 | P21: 44.49421887
A22: 0 | B22: 2008-04-01 | C22: CF | D22: 1201 | E22: Bocageopsis_multiflora_(Mart.)_R._E._Fries | F22: SIMP | G22: 5 | H22: 1 | I22: 5 | J22: F | K22: 1 | L22: AF | M22: 322133 | N22: 2534 | O22: 3494 | P22: 2401.317808
A23: 0 | B23: 2008-04-01 | C23: CF | D23: 1201 | E23: Bocageopsis_multiflora_(Mart.)_R._E._Fries | F23: SIMP | G23: 5 | H23: 1 | I23: 5 | J23: F | K23: 2 | L23: AF | M23: 228860 | N23: 2534 | O23: 3494 | P23: 1706.020785
A24: 0 | B24: 2008-04-01 | C24: CF | D24: 1201 | E24: Bocageopsis_multiflora_(Mart.)_R._E._Fries | F24: SIMP | G24: 5 | H24: 1 | I24: 5 | J24: F | K24: 3 | L24: AF | M24: 251751 | N24: 2534 | O24: 3494 | P24: 1876.660135
A25: 0 | B25: 2008-04-01 | C25: CF | D25: 1201 | E25: Bocageopsis_multiflora_(Mart.)_R._E._Fries | F25: SIMP | G25: 5 | H25: 1 | I25: 5 | J25: F | K25: 4 | L25: AF | M25: 203384 | N25: 2534 | O25: 3494 | P25: 1516.111733
A26: 0 | B26: 2008-04-01 | C26: CF | D26: 1201 | E26: Bocageopsis_multiflora_(Mart.)_R._E._Fries | F26: SIMP | G26: 5 | H26: 1 | I26: 5 | J26: F | K26: 5 | L26: AF | M26: 243287 | N26: 2534 | O26: 3494 | P26: 1813.565842
A27: 0 | B27: 2008-04-01 | C27: CF | D27: 1201 | E27: Bocageopsis_multiflora_(Mart.)_R._E._Fries | F27: SIMP | G27: 5 | H27: 1 | I27: 5 | J27: P | K27: 6 | L27: AF | M27: 804 | N27: 2534 | O27: 3494 | P27: 5.993361492
A28: 0 | B28: 2008-04-01 | C28: CF | D28: 1201 | E28: Bocageopsis_multiflora_(Mart.)_R._E._Fries | F28: SIMP | G28: 5 | H28: 1 | I28: 5 | J28: P | K28: 7 | L28: AF | M28: 1131 | N28: 2534 | O28: 3494 | P28: 8.430960009
A29: 0 | B29: 2008-04-01 | C29: CF | D29: 1201 | E29: Bocageopsis_multiflora_(Mart.)_R._E._Fries | F29: SIMP | G29: 5 | H29: 1 | I29: 5 | J29: P | K29: 8 | L29: AF | M29: 988 | N29: 2534 | O29: 3494 | P29: 7.364976559
A30: 0 | B30: 2008-04-01 | C30: CF | D30: 1201 | E30: Bocageopsis_multiflora_(Mart.)_R._E._Fries | F30: SIMP | G30: 5 | H30: 1 | I30: 5 | J30: P | K30: 9 | L30: AF | M30: 1170 | N30: 2534 | O30: 3494 | P30: 8.721682767
A31: 0 | B31: 2008-04-01 | C31: CF | D31: 1201 | E31: Bocageopsis_multiflora_(Mart.)_R._E._Fries | F31: SIMP | G31: 5 | H31: 1 | I31: 5 | J31: P | K31: 10 | L31: AF | M31: 880 | N31: 2534 | O31: 3494 | P31: 6.55989815
A32: 0 | B32: 2008-04-03 | C32: CF | D32: 6020 | E32: Bocageopsis_multiflora_(Mart.)_R._E._Fries | F32: SIMP | G32: 5 | H32: 1 | I32: 5 | J32: F | K32: 1 | L32: AF | M32: 278292 | N32: 2535 | O32: 3495 | P32: 2073.096478
A33: 0 | B33: 2008-04-03 | C33: CF | D33: 6020 | E33: Bocageopsis_multiflora_(Mart.)_R._E._Fries | F33: SIMP | G33: 5 | H33: 1 | I33: 5 | J33: F | K33: 2 | L33: AF | M33: 327684 | N33: 2535 | O33: 3495 | P33: 2441.035122
A34: 0 | B34: 2008-04-03 | C34: CF | D34: 6020 | E34: Bocageopsis_multiflora_(Mart.)_R._E._Fries | F34: SIMP | G34: 5 | H34: 1 | I34: 5 | J34: F | K34: 3 | L34: AF | M34: 307887 | N34: 2535 | O34: 3495 | P34: 2293.5602
A35: 0 | B35: 2008-04-03 | C35: CF | D35: 6020 | E35: Bocageopsis_multiflora_(Mart.)_R._E._Fries | F35: SIMP | G35: 5 | H35: 1 | I35: 5 | J35: F | K35: 4 | L35: AF | M35: 330153 | N35: 2535 | O35: 3495 | P35: 2459.427585
A36: 0 | B36: 2008-04-03 | C36: CF | D36: 6020 | E36: Bocageopsis_multiflora_(Mart.)_R._E._Fries | F36: SIMP | G36: 5 | H36: 1 | I36: 5 | J36: F | K36: 5 | L36: AF | M36: 312791 | N36: 2535 | O36: 3495 | P36: 2330.091847
A37: 0 | B37: 2008-04-03 | C37: CF | D37: 6020 | E37: Bocageopsis_multiflora_(Mart.)_R._E._Fries | F37: SIMP | G37: 5 | H37: 1 | I37: 5 | J37: P | K37: 6 | L37: AF | M37: 1758 | N37: 2535 | O37: 3495 | P37: 13.09596973
A38: 0 | B38: 2008-04-03 | C38: CF | D38: 6020 | E38: Bocageopsis_multiflora_(Mart.)_R._E._Fries | F38: SIMP | G38: 5 | H38: 1 | I38: 5 | J38: P | K38: 7 | L38: AF | M38: 1346 | N38: 2535 | O38: 3495 | P38: 10.02683462
A39: 0 | B39: 2008-04-03 | C39: CF | D39: 6020 | E39: Bocageopsis_multiflora_(Mart.)_R._E._Fries | F39: SIMP | G39: 5 | H39: 1 | I39: 5 | J39: P | K39: 8 | L39: AF | M39: 1583 | N39: 2535 | O39: 3495 | P39: 11.79233224
A40: 0 | B40: 2008-04-03 | C40: CF | D40: 6020 | E40: Bocageopsis_multiflora_(Mart.)_R._E._Fries | F40: SIMP | G40: 5 | H40: 1 | I40: 5 | J40: P | K40: 9 | L40: AF | M40: 1570 | N40: 2535 | O40: 3495 | P40: 11.6954906
A41: 0 | B41: 2008-04-03 | C41: CF | D41: 6020 | E41: Bocageopsis_multiflora_(Mart.)_R._E._Fries | F41: SIMP | G41: 5 | H41: 1 | I41: 5 | J41: P | K41: 10 | L41: AF | M41: 1313 | N41: 2535 | O41: 3495 | P41: 9.781005833
A42: 0 | B42: 2008-04-03 | C42: CF | D42: 6023 | E42: Bocageopsis_multiflora_(Mart.)_R._E._Fries | F42: SIMP | G42: 5 | H42: 1 | I42: 5 | J42: F | K42: 1 | L42: AF | M42: 354104 | N42: 2535 | O42: 3495 | P42: 2637.847136
A43: 0 | B43: 2008-04-03 | C43: CF | D43: 6023 | E43: Bocageopsis_multiflora_(Mart.)_R._E._Fries | F43: SIMP | G43: 5 | H43: 1 | I43: 5 | J43: F | K43: 2 | L43: AF | M43: 285507 | N43: 2535 | O43: 3495 | P43: 2126.843589
A44: 0 | B44: 2008-04-03 | C44: CF | D44: 6023 | E44: Bocageopsis_multiflora_(Mart.)_R._E._Fries | F44: SIMP | G44: 5 | H44: 1 | I44: 5 | J44: F | K44: 3 | L44: AF | M44: 322918 | N44: 2535 | O44: 3495 | P44: 2405.531486
A45: 0 | B45: 2008-04-03 | C45: CF | D45: 6023 | E45: Bocageopsis_multiflora_(Mart.)_R._E._Fries | F45: SIMP | G45: 5 | H45: 1 | I45: 5 | J45: F | K45: 4 | L45: AF | M45: 425213 | N45: 2535 | O45: 3495 | P45: 3167.563468
A46: 0 | B46: 2008-04-03 | C46: CF | D46: 6023 | E46: Bocageopsis_multiflora_(Mart.)_R._E._Fries | F46: SIMP | G46: 5 | H46: 1 | I46: 5 | J46: F | K46: 5 | L46: AF | M46: 299418 | N46: 2535 | O46: 3495 | P46: 2230.471595
A47: 0 | B47: 2008-04-03 | C47: CF | D47: 6023 | E47: Bocageopsis_multiflora_(Mart.)_R._E._Fries | F47: SIMP | G47: 5 | H47: 1 | I47: 5 | J47: P | K47: 6 | L47: AF | M47: 1202 | N47: 2535 | O47: 3495 | P47: 8.954127198
A48: 0 | B48: 2008-04-03 | C48: CF | D48: 6023 | E48: Bocageopsis_multiflora_(Mart.)_R._E._Fries | F48: SIMP | G48: 5 | H48: 1 | I48: 5 | J48: P | K48: 7 | L48: AF | M48: 1171 | N48: 2535 | O48: 3495 | P48: 8.723197129
A49: 0 | B49: 2008-04-03 | C49: CF | D49: 6023 | E49: Bocageopsis_multiflora_(Mart.)_R._E._Fries | F49: SIMP | G49: 5 | H49: 1 | I49: 5 | J49: P | K49: 8 | L49: AF | M49: 1585 | N49: 2535 | O49: 3495 | P49: 11.80723096
A50: 0 | B50: 2008-04-03 | C50: CF | D50: 6023 | E50: Bocageopsis_multiflora_(Mart.)_R._E._Fries | F50: SIMP | G50: 5 | H50: 1 | I50: 5 | J50: P | K50: 9 | L50: AF | M50: 1296 | N50: 2535 | O50: 3495 | P50: 9.654366762
A51: 0 | B51: 2008-04-03 | C51: CF | D51: 6023 | E51: Bocageopsis_multiflora_(Mart.)_R._E._Fries | F51: SIMP | G51: 5 | H51: 1 | I51: 5 | J51: P | K51: 10 | L51: AF | M51: 990 | N51: 2535 | O51: 3495 | P51: 7.374863499
A52: 0 | B52: 2008-04-20 | C52: FL | D52: 5345 | E52: Bocoa_viridiflora_(Ducke)_Cowan | F52: COMP | G52: 5 | H52: 1 | I52: 15 | J52: F | K52: 1 | L52: AF | M52: 548306 | N52: 2535 | O52: 3495 | P52: 4084.527177
A53: 0 | B53: 2008-04-20 | C53: FL | D53: 5345 | E53: Bocoa_viridiflora_(Ducke)_Cowan | F53: COMP | G53: 5 | H53: 1 | I53: 15 | J53: F | K53: 2 | L53: AF | M53: 305596 | N53: 2535 | O53: 3495 | P53: 2276.493723
A54: 0 | B54: 2008-04-20 | C54: FL | D54: 5345 | E54: Bocoa_viridiflora_(Ducke)_Cowan | F54: COMP | G54: 5 | H54: 1 | I54: 15 | J54: F | K54: 3 | L54: AF | M54: 475092 | N54: 2535 | O54: 3495 | P54: 3539.129949
A55: 0 | B55: 2008-04-20 | C55: FL | D55: 5345 | E55: Bocoa_viridiflora_(Ducke)_Cowan | F55: COMP | G55: 5 | H55: 1 | I55: 15 | J55: F | K55: 4 | L55: AF | M55: 708282 | N55: 2535 | O55: 3495 | P55: 5276.245524
A56: 0 | B56: 2008-04-20 | C56: FL | D56: 5345 | E56: Bocoa_viridiflora_(Ducke)_Cowan | F56: COMP | G56: 5 | H56: 1 | I56: 15 | J56: F | K56: 5 | L56: AF | M56: 769424 | N56: 2535 | O56: 3495 | P56: 5731.714114
A57: 0 | B57: 2008-04-20 | C57: FL | D57: 5345 | E57: Bocoa_viridiflora_(Ducke)_Cowan | F57: COMP | G57: 5 | H57: 1 | I57: 15 | J57: F | K57: 6 | L57: AF | M57: 804669 | N57: 2535 | O57: 3495 | P57: 5994.266704
A58: 0 | B58: 2008-04-20 | C58: FL | D58: 5345 | E58: Bocoa_viridiflora_(Ducke)_Cowan | F58: COMP | G58: 5 | H58: 1 | I58: 15 | J58: F | K58: 7 | L58: AF | M58: 317294 | N58: 2535 | O58: 3495 | P58: 2363.636302
A59: 0 | B59: 2008-04-20 | C59: FL | D59: 5345 | E59: Bocoa_viridiflora_(Ducke)_Cowan | F59: COMP | G59: 5 | H59: 1 | I59: 15 | J59: F | K59: 8 | L59: AF | M59: 367130 | N59: 2535 | O59: 3495 | P59: 2734.882461
A60: 0 | B60: 2008-04-20 | C60: FL | D60: 5345 | E60: Bocoa_viridiflora_(Ducke)_Cowan | F60: COMP | G60: 5 | H60: 1 | I60: 15 | J60: F | K60: 9 | L60: AF | M60: 303048 | N60: 2535 | O60: 3495 | P60: 2257.512761
A61: 0 | B61: 2008-04-20 | C61: FL | D61: 5345 | E61: Bocoa_viridiflora_(Ducke)_Cowan | F61: COMP | G61: 5 | H61: 1 | I61: 15 | J61: F | K61: 10 | L61: AF | M61: 375428 | N61: 2535 | O61: 3495 | P61: 2796.697226
A62: 0 | B62: 2008-04-20 | C62: FL | D62: 5345 | E62: Bocoa_viridiflora_(Ducke)_Cowan | F62: COMP | G62: 5 | H62: 1 | I62: 15 | J62: F | K62: 11 | L62: AF | M62: 346049 | N62: 2535 | O62: 3495 | P62: 2577.842565
A63: 0 | B63: 2008-04-20 | C63: FL | D63: 5345 | E63: Bocoa_viridiflora_(Ducke)_Cowan | F63: COMP | G63: 5 | H63: 1 | I63: 15 | J63: F | K63: 12 | L63: AF | M63: 264966 | N63: 2535 | O63: 3495 | P63: 1973.826345
A64: 0 | B64: 2008-04-20 | C64: FL | D64: 5345 | E64: Bocoa_viridiflora_(Ducke)_Cowan | F64: COMP | G64: 5 | H64: 1 | I64: 15 | J64: F | K64: 13 | L64: AF | M64: 357476 | N64: 2535 | O64: 3495 | P64: 2662.966368
A65: 0 | B65: 2008-04-20 | C65: FL | D65: 5345 | E65: Bocoa_viridiflora_(Ducke)_Cowan | F65: COMP | G65: 5 | H65: 1 | I65: 15 | J65: F | K65: 14 | L65: AF | M65: 308360 | N65: 2535 | O65: 3495 | P65: 2297.083746
A66: 0 | B66: 2008-04-20 | C66: FL | D66: 5345 | E66: Bocoa_viridiflora_(Ducke)_Cowan | F66: COMP | G66: 5 | H66: 1 | I66: 15 | J66: F | K66: 15 | L66: AF | M66: 413624 | N66: 2535 | O66: 3495 | P66: =66000*M66/(N66*O66) -> 3081.232869
A67: 0 | B67: 2008-04-20 | C67: FL | D67: 5345 | E67: Bocoa_viridiflora_(Ducke)_Cowan | F67: COMP | G67: 5 | H67: 1 | I67: 15 | J67: R | K67: 16 | L67: AF | M67: 20261 | N67: 2535 | O67: 3495 | P67: 150.9314236
A68: 0 | B68: 2008-04-20 | C68: FL | D68: 5345 | E68: Bocoa_viridiflora_(Ducke)_Cowan | F68: COMP | G68: 5 | H68: 1 | I68: 15 | J68: R | K68: 17 | L68: AF | M68: 28858 | N68: 2535 | O68: 3495 | P68: 214.9735463
A69: 0 | B69: 2008-04-20 | C69: FL | D69: 5345 | E69: Bocoa_viridiflora_(Ducke)_Cowan | F69: COMP | G69: 5 | H69: 1 | I69: 15 | J69: R | K69: 18 | L69: AF | M69: 25868 | N69: 2535 | O69: 3495 | P69: 192.6999687
A70: 0 | B70: 2008-04-20 | C70: FL | D70: 5345 | E70: Bocoa_viridiflora_(Ducke)_Cowan | F70: COMP | G70: 5 | H70: 1 | I70: 15 | J70: R | K70: 19 | L70: AF | M70: 26280 | N70: 2535 | O70: 3495 | P70: 195.7691038
A71: 0 | B71: 2008-04-20 | C71: FL | D71: 5345 | E71: Bocoa_viridiflora_(Ducke)_Cowan | F71: COMP | G71: 5 | H71: 1 | I71: 15 | J71: R | K71: 20 | L71: AF | M71: 20874 | N71: 2535 | O71: 3495 | P71: 155.4978795
A72: 0 | B72: 2008-04-19 | C72: FL | D72: 5505 | E72: Bocoa_viridiflora_(Ducke)_Cowan | F72: COMP | G72: 5 | H72: 1 | I72: 22 | J72: F | K72: 1 | L72: AF | M72: 691239 | N72: 2535 | O72: 3495 | P72: 5149.286131
A73: 0 | B73: 2008-04-19 | C73: FL | D73: 5505 | E73: Bocoa_viridiflora_(Ducke)_Cowan | F73: COMP | G73: 5 | H73: 1 | I73: 22 | J73: F | K73: 2 | L73: AF | M73: 804071 | N73: 2535 | O73: 3495 | P73: 5989.811988
A74: 0 | B74: 2008-04-19 | C74: FL | D74: 5505 | E74: Bocoa_viridiflora_(Ducke)_Cowan | F74: COMP | G74: 5 | H74: 1 | I74: 22 | J74: F | K74: 3 | L74: AF | M74: 342429 | N74: 2535 | O74: 3495 | P74: 2550.875892
A75: 0 | B75: 2008-04-19 | C75: FL | D75: 5505 | E75: Bocoa_viridiflora_(Ducke)_Cowan | F75: COMP | G75: 5 | H75: 1 | I75: 22 | J75: F | K75: 4 | L75: AF | M75: 350996 | N75: 2535 | O75: 3495 | P75: 2614.694534
A76: 0 | B76: 2008-04-19 | C76: FL | D76: 5505 | E76: Bocoa_viridiflora_(Ducke)_Cowan | F76: COMP | G76: 5 | H76: 1 | I76: 22 | J76: F | K76: 5 | L76: AF | M76: 321353 | N76: 2535 | O76: 3495 | P76: 2393.873242
A77: 0 | B77: 2008-04-19 | C77: FL | D77: 5505 | E77: Bocoa_viridiflora_(Ducke)_Cowan | F77: COMP | G77: 5 | H77: 1 | I77: 22 | J77: F | K77: 6 | L77: AF | M77: 820981 | N77: 2535 | O77: 3495 | P77: 6115.780616
A78: 0 | B78: 2008-04-19 | C78: FL | D78: 5505 | E78: Bocoa_viridiflora_(Ducke)_Cowan | F78: COMP | G78: 5 | H78: 1 | I78: 22 | J78: F | K78: 7 | L78: AF | M78: 717688 | N78: 2535 | O78: 3495 | P78: 5346.314177
A79: 0 | B79: 2008-04-19 | C79: FL | D79: 5505 | E79: Bocoa_viridiflora_(Ducke)_Cowan | F79: COMP | G79: 5 | H79: 1 | I79: 22 | J79: F | K79: 8 | L79: AF | M79: 280640 | N79: 2535 | O79: 3495 | P79: 2090.587568
A80: 0 | B80: 2008-04-19 | C80: FL | D80: 5505 | E80: Bocoa_viridiflora_(Ducke)_Cowan | F80: COMP | G80: 5 | H80: 1 | I80: 22 | J80: F | K80: 9 | L80: AF | M80: 898403 | N80: 2535 | O80: 3495 | P80: 6692.524739
A81: 0 | B81: 2008-04-19 | C81: FL | D81: 5505 | E81: Bocoa_viridiflora_(Ducke)_Cowan | F81: COMP | G81: 5 | H81: 1 | I81: 22 | J81: F | K81: 10 | L81: AF | M81: 566403 | N81: 2535 | O81: 3495 | P81: 4219.338192
A82: 0 | B82: 2008-04-19 | C82: FL | D82: 5505 | E82: Bocoa_viridiflora_(Ducke)_Cowan | F82: COMP | G82: 5 | H82: 1 | I82: 22 | J82: F | K82: 11 | L82: AF | M82: 458983 | N82: 2535 | O82: 3495 | P82: 3419.128256
A83: 0 | B83: 2008-04-19 | C83: FL | D83: 5505 | E83: Bocoa_viridiflora_(Ducke)_Cowan | F83: COMP | G83: 5 | H83: 1 | I83: 22 | J83: F | K83: 12 | L83: AF | M83: 444148 | N83: 2535 | O83: 3495 | P83: 3308.617044
A84: 0 | B84: 2008-04-19 | C84: FL | D84: 5505 | E84: Bocoa_viridiflora_(Ducke)_Cowan | F84: COMP | G84: 5 | H84: 1 | I84: 22 | J84: F | K84: 13 | L84: AF | M84: 392573 | N84: 2535 | O84: 3495 | P84: 2924.416453
A85: 0 | B85: 2008-04-19 | C85: FL | D85: 5505 | E85: Bocoa_viridiflora_(Ducke)_Cowan | F85: COMP | G85: 5 | H85: 1 | I85: 22 | J85: F | K85: 14 | L85: AF | M85: 393771 | N85: 2535 | O85: 3495 | P85: 2933.340783
A86: 0 | B86: 2008-04-19 | C86: FL | D86: 5505 | E86: Bocoa_viridiflora_(Ducke)_Cowan | F86: COMP | G86: 5 | H86: 1 | I86: 22 | J86: F | K86: 15 | L86: AF | M86: 385505 | N86: 2535 | O86: 3495 | P86: 2871.764397
A87: 0 | B87: 2008-04-19 | C87: FL | D87: 5505 | E87: Bocoa_viridiflora_(Ducke)_Cowan | F87: COMP | G87: 5 | H87: 1 | I87: 22 | J87: F | K87: 21 | L87: AF | M87: 565578 | N87: 2535 | O87: 3495 | P87: 4213.192473
A88: 0 | B88: 2008-04-19 | C88: FL | D88: 5505 | E88: Bocoa_viridiflora_(Ducke)_Cowan | F88: COMP | G88: 5 | H88: 1 | I88: 22 | J88: F | K88: 22 | L88: AF | M88: 395864 | N88: 2535 | O88: 3495 | P88: 2948.932287
A89: 0 | B89: 2008-04-19 | C89: FL | D89: 5505 | E89: Bocoa_viridiflora_(Ducke)_Cowan | F89: COMP | G89: 5 | H89: 1 | I89: 22 | J89: F | K89: 23 | L89: AF | M89: 898072 | N89: 2535 | O89: 3495 | P89: 6690.059002
A90: 0 | B90: 2008-04-19 | C90: FL | D90: 5505 | E90: Bocoa_viridiflora_(Ducke)_Cowan | F90: COMP | G90: 5 | H90: 1 | I90: 22 | J90: F | K90: 24 | L90: AF | M90: 441904 | N90: 2535 | O90: 3495 | P90: 3291.900687
A91: 0 | B91: 2008-04-19 | C91: FL | D91: 5505 | E91: Bocoa_viridiflora_(Ducke)_Cowan | F91: COMP | G91: 5 | H91: 1 | I91: 22 | J91: F | K91: 25 | L91: AF | M91: 386206 | N91: 2535 | O91: 3495 | P91: 2876.986396
A92: 0 | B92: 2008-04-19 | C92: FL | D92: 5505 | E92: Bocoa_viridiflora_(Ducke)_Cowan | F92: COMP | G92: 5 | H92: 1 | I92: 22 | J92: F | K92: 26 | L92: AF | M92: 459135 | N92: 2535 | O92: 3495 | P92: 3420.260558
A93: 0 | B93: 2008-04-19 | C93: FL | D93: 5505 | E93: Bocoa_viridiflora_(Ducke)_Cowan | F93: COMP | G93: 5 | H93: 1 | I93: 22 | J93: F | K93: 27 | L93: AF | M93: 394315 | N93: 2535 | O93: 3495 | P93: 2937.393233
A94: 0 | B94: 2008-04-19 | C94: FL | D94: 5505 | E94: Bocoa_viridiflora_(Ducke)_Cowan | F94: COMP | G94: 5 | H94: 1 | I94: 22 | J94: R | K94: 16 | L94: AF | M94: 19208 | N94: 2535 | O94: 3495 | P94: 143.0872506
A95: 0 | B95: 2008-04-19 | C95: FL | D95: 5505 | E95: Bocoa_viridiflora_(Ducke)_Cowan | F95: COMP | G95: 5 | H95: 1 | I95: 22 | J95: R | K95: 17 | L95: AF | M95: 20966 | N95: 2535 | O95: 3495 | P95: 156.1832203
A96: 0 | B96: 2008-04-19 | C96: FL | D96: 5505 | E96: Bocoa_viridiflora_(Ducke)_Cowan | F96: COMP | G96: 5 | H96: 1 | I96: 22 | J96: R | K96: 18 | L96: AF | M96: 19318 | N96: 2535 | O96: 3495 | P96: 143.9066799
A97: 0 | B97: 2008-04-19 | C97: FL | D97: 5505 | E97: Bocoa_viridiflora_(Ducke)_Cowan | F97: COMP | G97: 5 | H97: 1 | I97: 22 | J97: R | K97: 19 | L97: AF | M97: 19237 | N97: 2535 | O97: 3495 | P97: 143.3032819
A98: 0 | B98: 2008-04-19 | C98: FL | D98: 5505 | E98: Bocoa_viridiflora_(Ducke)_Cowan | F98: COMP | G98: 5 | H98: 1 | I98: 22 | J98: R | K98: 20 | L98: AF | M98: 17424 | N98: 2535 | O98: 3495 | P98: 129.7975976
A99: 0 | B99: 2008-04-19 | C99: FL | D99: 6573 | E99: Bocoa_viridiflora_(Ducke)_Cowan | F99: COMP | G99: 5 | H99: 1 | I99: 15 | J99: F | K99: 1 | L99: AF | M99: 830484 | N99: 2535 | O99: 3495 | P99: 6186.571857
A100: 0 | B100: 2008-04-19 | C100: FL | D100: 6573 | E100: Bocoa_viridiflora_(Ducke)_Cowan | F100: COMP | G100: 5 | H100: 1 | I100: 15 | J100: F | K100: 2 | L100: AF | M100: 917376 | N100: 2535 | O100: 3495 | P100: 6833.861391
A101: 0 | B101: 2008-04-19 | C101: FL | D101: 6573 | E101: Bocoa_viridiflora_(Ducke)_Cowan | F101: COMP | G101: 5 | H101: 1 | I101: 15 | J101: F | K101: 3 | L101: AF | M101: 1106239 | N101: 2535 | O101: 3495 | P101: 8240.769315
A102: 0 | B102: 2008-04-19 | C102: FL | D102: 6573 | E102: Bocoa_viridiflora_(Ducke)_Cowan | F102: COMP | G102: 5 | H102: 1 | I102: 15 | J102: F | K102: 4 | L102: AF | M102: 769710 | N102: 2535 | O102: 3495 | P102: 5733.84463
A103: 0 | B103: 2008-04-19 | C103: FL | D103: 6573 | E103: Bocoa_viridiflora_(Ducke)_Cowan | F103: COMP | G103: 5 | H103: 1 | I103: 15 | J103: F | K103: 5 | L103: AF | M103: 847291 | N103: 2535 | O103: 3495 | P103: 6311.773201
A104: 0 | B104: 2008-04-19 | C104: FL | D104: 6573 | E104: Bocoa_viridiflora_(Ducke)_Cowan | F104: COMP | G104: 5 | H104: 1 | I104: 15 | J104: F | K104: 6 | L104: AF | M104: 639851 | N104: 2535 | O104: 3495 | P104: 4766.47857
A105: 0 | B105: 2008-04-19 | C105: FL | D105: 6573 | E105: Bocoa_viridiflora_(Ducke)_Cowan | F105: COMP | G105: 5 | H105: 1 | I105: 15 | J105: F | K105: 7 | L105: AF | M105: 449148 | N105: 2535 | O105: 3495 | P105: 3345.863829
A106: 0 | B106: 2008-04-19 | C106: FL | D106: 6573 | E106: Bocoa_viridiflora_(Ducke)_Cowan | F106: COMP | G106: 5 | H106: 1 | I106: 15 | J106: F | K106: 8 | L106: AF | M106: 614819 | N106: 2535 | O106: 3495 | P106: 4580.006264
A107: 0 | B107: 2008-04-19 | C107: FL | D107: 6573 | E107: Bocoa_viridiflora_(Ducke)_Cowan | F107: COMP | G107: 5 | H107: 1 | I107: 15 | J107: F | K107: 9 | L107: AF | M107: 606238 | N107: 2535 | O107: 3495 | P107: 4516.083331
A108: 0 | B108: 2008-04-19 | C108: FL | D108: 6573 | E108: Bocoa_viridiflora_(Ducke)_Cowan | F108: COMP | G108: 5 | H108: 1 | I108: 15 | J108: F | K108: 10 | L108: AF | M108: 465724 | N108: 2535 | O108: 3495 | P108: 3469.344372
A109: 0 | B109: 2008-04-19 | C109: FL | D109: 6573 | E109: Bocoa_viridiflora_(Ducke)_Cowan | F109: COMP | G109: 5 | H109: 1 | I109: 15 | J109: F | K109: 11 | L109: AF | M109: 413123 | N109: 2535 | O109: 3495 | P109: 3077.500741
A110: 0 | B110: 2008-04-19 | C110: FL | D110: 6573 | E110: Bocoa_viridiflora_(Ducke)_Cowan | F110: COMP | G110: 5 | H110: 1 | I110: 15 | J110: F | K110: 12 | L110: AF | M110: 271490 | N110: 2535 | O110: 3495 | P110: 2022.425951
A111: 0 | B111: 2008-04-19 | C111: FL | D111: 6573 | E111: Bocoa_viridiflora_(Ducke)_Cowan | F111: COMP | G111: 5 | H111: 1 | I111: 15 | J111: F | K111: 13 | L111: AF | M111: 362846 | N111: 2535 | O111: 3495 | P111: 2702.969415
A112: 0 | B112: 2008-04-19 | C112: FL | D112: 6573 | E112: Bocoa_viridiflora_(Ducke)_Cowan | F112: COMP | G112: 5 | H112: 1 | I112: 15 | J112: F | K112: 14 | L112: AF | M112: 376120 | N112: 2535 | O112: 3495 | P112: 2801.852181
A113: 0 | B113: 2008-04-19 | C113: FL | D113: 6573 | E113: Bocoa_viridiflora_(Ducke)_Cowan | F113: COMP | G113: 5 | H113: 1 | I113: 15 | J113: F | K113: 15 | L113: AF | M113: 500360 | N113: 2535 | O113: 3495 | P113: 3727.360303
A114: 0 | B114: 2008-04-19 | C114: FL | D114: 6573 | E114: Bocoa_viridiflora_(Ducke)_Cowan | F114: COMP | G114: 5 | H114: 1 | I114: 15 | J114: R | K114: 16 | L114: AF | M114: 30224 | N114: 2535 | O114: 3495 | P114: 225.1493681
A115: 0 | B115: 2008-04-19 | C115: FL | D115: 6573 | E115: Bocoa_viridiflora_(Ducke)_Cowan | F115: COMP | G115: 5 | H115: 1 | I115: 15 | J115: R | K115: 17 | L115: AF | M115: 28544 | N115: 2535 | O115: 3495 | P115: 212.6344482
A116: 0 | B116: 2008-04-19 | C116: FL | D116: 6573 | E116: Bocoa_viridiflora_(Ducke)_Cowan | F116: COMP | G116: 5 | H116: 1 | I116: 15 | J116: R | K116: 18 | L116: AF | M116: 31309 | N116: 2535 | O116: 3495 | P116: 233.2319205
A117: 0 | B117: 2008-04-19 | C117: FL | D117: 6573 | E117: Bocoa_viridiflora_(Ducke)_Cowan | F117: COMP | G117: 5 | H117: 1 | I117: 15 | J117: R | K117: 19 | L117: AF | M117: 33670 | N117: 2535 | O117: 3495 | P117: 250.8198525
A118: 0 | B118: 2008-04-19 | C118: FL | D118: 6573 | E118: Bocoa_viridiflora_(Ducke)_Cowan | F118: COMP | G118: 5 | H118: 1 | I118: 15 | J118: R | K118: 20 | L118: AF | M118: 26079 | N118: 2535 | O118: 3495 | P118: 194.271783
A119: 0 | B119: 2008-05-10 | C119: KM_37 | D119: 51067 | E119: Bocoa_viridiflora_(Ducke)_Cowan | F119: COMP | G119: 5 | H119: 1 | I119: 15 | J119: F | K119: 1 | L119: AF | M119: 725797 | N119: 2535 | O119: 3495 | P119: 5406.721013
A120: 0 | B120: 2008-05-10 | C120: KM_37 | D120: 51067 | E120: Bocoa_viridiflora_(Ducke)_Cowan | F120: COMP | G120: 5 | H120: 1 | I120: 15 | J120: F | K120: 2 | L120: AF | M120: 686035 | N120: 2535 | O120: 3495 | P120: 5110.519677
A121: 0 | B121: 2008-05-10 | C121: KM_37 | D121: 51067 | E121: Bocoa_viridiflora_(Ducke)_Cowan | F121: COMP | G121: 5 | H121: 1 | I121: 15 | J121: F | K121: 3 | L121: AF | M121: 944394 | N121: 2535 | O121: 3495 | P121: 7035.12812
A122: 0 | B122: 2008-05-10 | C122: KM_37 | D122: 51067 | E122: Bocoa_viridiflora_(Ducke)_Cowan | F122: COMP | G122: 5 | H122: 1 | I122: 15 | J122: F | K122: 4 | L122: AF | M122: 1015992 | N122: 2535 | O122: 3495 | P122: 7568.487188
A123: 0 | B123: 2008-05-10 | C123: KM_37 | D123: 51067 | E123: Bocoa_viridiflora_(Ducke)_Cowan | F123: COMP | G123: 5 | H123: 1 | I123: 15 | J123: F | K123: 5 | L123: AF | M123: 859086 | N123: 2535 | O123: 3495 | P123: 6399.638368
A124: 0 | B124: 2008-05-10 | C124: KM_37 | D124: 51067 | E124: Bocoa_viridiflora_(Ducke)_Cowan | F124: COMP | G124: 5 | H124: 1 | I124: 15 | J124: F | K124: 6 | L124: AF | M124: 715094 | N124: 2535 | O124: 3495 | P124: 5326.990544
A125: 0 | B125: 2008-05-10 | C125: KM_37 | D125: 51067 | E125: Bocoa_viridiflora_(Ducke)_Cowan | F125: COMP | G125: 5 | H125: 1 | I125: 15 | J125: F | K125: 7 | L125: AF | M125: 902760 | N125: 2535 | O125: 3495 | P125: 6724.981588
A126: 0 | B126: 2008-05-10 | C126: KM_37 | D126: 51067 | E126: Bocoa_viridiflora_(Ducke)_Cowan | F126: COMP | G126: 5 | H126: 1 | I126: 15 | J126: F | K126: 8 | L126: AF | M126: 699030 | N126: 2535 | O126: 3495 | P126: 5207.324072
A127: 0 | B127: 2008-05-10 | C127: KM_37 | D127: 51067 | E127: Bocoa_viridiflora_(Ducke)_Cowan | F127: COMP | G127: 5 | H127: 1 | I127: 15 | J127: F | K127: 9 | L127: AF | M127: 1017675 | N127: 2535 | O127: 3495 | P127: 7581.024456
A128: 0 | B128: 2008-05-10 | C128: KM_37 | D128: 51067 | E128: Bocoa_viridiflora_(Ducke)_Cowan | F128: COMP | G128: 5 | H128: 1 | I128: 15 | J128: F | K128: 10 | L128: AF | M128: 728327 | N128: 2535 | O128: 3495 | P128: 5425.567886
A129: 0 | B129: 2008-05-10 | C129: KM_37 | D129: 51067 | E129: Bocoa_viridiflora_(Ducke)_Cowan | F129: COMP | G129: 5 | H129: 1 | I129: 15 | J129: F | K129: 11 | L129: AF | M129: 991492 | N129: 2535 | O129: 3495 | P129: 7385.97794
A130: 0 | B130: 2008-05-10 | C130: KM_37 | D130: 51067 | E130: Bocoa_viridiflora_(Ducke)_Cowan | F130: COMP | G130: 5 | H130: 1 | I130: 15 | J130: F | K130: 12 | L130: AF | M130: 667832 | N130: 2535 | O130: 3495 | P130: =66000*M130/(N130*O130) -> 4974.919031
A131: 0 | B131: 2008-05-10 | C131: KM_37 | D131: 51067 | E131: Bocoa_viridiflora_(Ducke)_Cowan | F131: COMP | G131: 5 | H131: 1 | I131: 15 | J131: F | K131: 13 | L131: AF | M131: 681016 | N131: 2535 | O131: 3495 | P131: 5073.131354
A132: 0 | B132: 2008-05-10 | C132: KM_37 | D132: 51067 | E132: Bocoa_viridiflora_(Ducke)_Cowan | F132: COMP | G132: 5 | H132: 1 | I132: 15 | J132: F | K132: 14 | L132: AF | M132: 590467 | N132: 2535 | O132: 3495 | P132: 4398.599521
A133: 0 | B133: 2008-05-10 | C133: KM_37 | D133: 51067 | E133: Bocoa_viridiflora_(Ducke)_Cowan | F133: COMP | G133: 5 | H133: 1 | I133: 15 | J133: F | K133: 15 | L133: AF | M133: 665970 | N133: 2535 | O133: 3495 | P133: 4961.048328
A134: 0 | B134: 2008-05-10 | C134: KM_37 | D134: 51067 | E134: Bocoa_viridiflora_(Ducke)_Cowan | F134: COMP | G134: 5 | H134: 1 | I134: 15 | J134: R | K134: 16 | L134: AF | M134: 27151 | N134: 2535 | O134: 3495 | P134: 202.2574938
A135: 0 | B135: 2008-05-10 | C135: KM_37 | D135: 51067 | E135: Bocoa_viridiflora_(Ducke)_Cowan | F135: COMP | G135: 5 | H135: 1 | I135: 15 | J135: R | K135: 17 | L135: AF | M135: 25652 | N135: 2535 | O135: 3495 | P135: 191.0909076
A136: 0 | B136: 2008-05-10 | C136: KM_37 | D136: 51067 | E136: Bocoa_viridiflora_(Ducke)_Cowan | F136: COMP | G136: 5 | H136: 1 | I136: 15 | J136: R | K136: 18 | L136: AF | M136: 17279 | N136: 2535 | O136: 3495 | P136: 128.7174408
A137: 0 | B137: 2008-05-10 | C137: KM_37 | D137: 51067 | E137: Bocoa_viridiflora_(Ducke)_Cowan | F137: COMP | G137: 5 | H137: 1 | I137: 15 | J137: R | K137: 19 | L137: AF | M137: 29861 | N137: 2535 | O137: 3495 | P137: 222.4452515
A138: 0 | B138: 2008-05-10 | C138: KM_37 | D138: 51067 | E138: Bocoa_viridiflora_(Ducke)_Cowan | F138: COMP | G138: 5 | H138: 1 | I138: 15 | J138: R | K138: 20 | L138: AF | M138: 22999 | N138: 2535 | O138: 3495 | P138: 171.3277632
A139: 0 | B139: 2008-04-19 | C139: FL | D139: 3869 | E139: Brosimum_rubescens_Taub. | F139: SIMP | G139: 5 | H139: 1 | I139: 5 | J139: F | K139: 1 | L139: AF | M139: 271418 | N139: 1268 | O139: 1748 | P139: 8082.056826
A140: 0 | B140: 2008-04-19 | C140: FL | D140: 3869 | E140: Brosimum_rubescens_Taub. | F140: SIMP | G140: 5 | H140: 1 | I140: 5 | J140: F | K140: 2 | L140: AF | M140: 253451 | N140: 1268 | O140: 1748 | P140: 7547.050618
A141: 0 | B141: 2008-04-19 | C141: FL | D141: 3869 | E141: Brosimum_rubescens_Taub. | F141: SIMP | G141: 5 | H141: 1 | I141: 5 | J141: F | K141: 3 | L141: AF | M141: 338436 | N141: 1268 | O141: 1748 | P141: 10077.66244
A142: 0 | B142: 2008-04-19 | C142: FL | D142: 3869 | E142: Brosimum_rubescens_Taub. | F142: SIMP | G142: 5 | H142: 1 | I142: 5 | J142: F | K142: 4 | L142: AF | M142: 256340 | N142: 1268 | O142: 1748 | P142: 7633.076829
A143: 0 | B143: 2008-04-19 | C143: FL | D143: 3869 | E143: Brosimum_rubescens_Taub. | F143: SIMP | G143: 5 | H143: 1 | I143: 5 | J143: F | K143: 5 | L143: AF | M143: 201121 | N143: 1268 | O143: 1748 | P143: 5988.811909
A144: 0 | B144: 2008-04-19 | C144: FL | D144: 3869 | E144: Brosimum_rubescens_Taub. | F144: SIMP | G144: 5 | H144: 1 | I144: 5 | J144: P | K144: 6 | L144: AF | M144: 1306 | N144: 1268 | O144: 1748 | P144: 38.8889691
A145: 0 | B145: 2008-04-19 | C145: FL | D145: 3869 | E145: Brosimum_rubescens_Taub. | F145: SIMP | G145: 5 | H145: 1 | I145: 5 | J145: P | K145: 7 | L145: AF | M145: 1288 | N145: 1268 | O145: 1748 | P145: 38.35298024
A146: 0 | B146: 2008-04-19 | C146: FL | D146: 3869 | E146: Brosimum_rubescens_Taub. | F146: SIMP | G146: 5 | H146: 1 | I146: 5 | J146: P | K146: 8 | L146: AF | M146: 1512 | N146: 1268 | O146: 1748 | P146: 45.02306376
A147: 0 | B147: 2008-04-19 | C147: FL | D147: 3869 | E147: Brosimum_rubescens_Taub. | F147: SIMP | G147: 5 | H147: 1 | I147: 5 | J147: P | K147: 9 | L147: AF | M147: 1136 | N147: 1268 | O147: 1748 | P147: 33.82685214
A148: 0 | B148: 2008-04-19 | C148: FL | D148: 3869 | E148: Brosimum_rubescens_Taub. | F148: SIMP | G148: 5 | H148: 1 | I148: 5 | J148: P | K148: 10 | L148: AF | M148: 993 | N148: 1268 | O148: 1748 | P148: 29.56871846
A149: 0 | B149: 2008-04-18 | C149: FL | D149: 3999 | E149: Brosimum_rubescens_Taub. | F149: SIMP | G149: 5 | H149: 1 | I149: 5 | J149: F | K149: 1 | L149: AF | M149: 58069 | N149: 1268 | O149: 1748 | P149: 1729.129821
A150: 0 | B150: 2008-04-18 | C150: FL | D150: 3999 | E150: Brosimum_rubescens_Taub. | F150: SIMP | G150: 5 | H150: 1 | I150: 5 | J150: F | K150: 2 | L150: AF | M150: 69674 | N150: 1268 | O150: 1748 | P150: 2074.693746
A151: 0 | B151: 2008-04-18 | C151: FL | D151: 3999 | E151: Brosimum_rubescens_Taub. | F151: SIMP | G151: 5 | H151: 1 | I151: 5 | J151: F | K151: 3 | L151: AF | M151: 66055 | N151: 1268 | O151: 1748 | P151: 1966.93021
A152: 0 | B152: 2008-04-18 | C152: FL | D152: 3999 | E152: Brosimum_rubescens_Taub. | F152: SIMP | G152: 5 | H152: 1 | I152: 5 | J152: F | K152: 4 | L152: AF | M152: 74747 | N152: 1268 | O152: 1748 | P152: 2225.753272
A153: 0 | B153: 2008-04-18 | C153: FL | D153: 3999 | E153: Brosimum_rubescens_Taub. | F153: SIMP | G153: 5 | H153: 1 | I153: 5 | J153: F | K153: 5 | L153: AF | M153: 62025 | N153: 1268 | O153: 1748 | P153: 1846.928261
A154: 0 | B154: 2008-04-18 | C154: FL | D154: 3999 | E154: Brosimum_rubescens_Taub. | F154: SIMP | G154: 5 | H154: 1 | I154: 5 | J154: P | K154: 6 | L154: AF | M154: 507 | N154: 1268 | O154: 1748 | P154: 15.0970194
A155: 0 | B155: 2008-04-18 | C155: FL | D155: 3999 | E155: Brosimum_rubescens_Taub. | F155: SIMP | G155: 5 | H155: 1 | I155: 5 | J155: P | K155: 7 | L155: AF | M155: 446 | N155: 1268 | O155: 1748 | P155: 13.28061272
A156: 0 | B156: 2008-04-18 | C156: FL | D156: 3999 | E156: Brosimum_rubescens_Taub. | F156: SIMP | G156: 5 | H156: 1 | I156: 5 | J156: P | K156: 8 | L156: AF | M156: 435 | N156: 1268 | O156: 1748 | P156: 12.95306398
A157: 0 | B157: 2008-04-18 | C157: FL | D157: 3999 | E157: Brosimum_rubescens_Taub. | F157: SIMP | G157: 5 | H157: 1 | I157: 5 | J157: P | K157: 9 | L157: AF | M157: 539 | N157: 1268 | O157: 1748 | P157: 16.04988847
A158: 0 | B158: 2008-04-18 | C158: FL | D158: 3999 | E158: Brosimum_rubescens_Taub. | F158: SIMP | G158: 5 | H158: 1 | I158: 5 | J158: P | K158: 10 | L158: AF | M158: 484 | N158: 1268 | O158: 1748 | P158: 14.41214475
A159: 0 | B159: 2008-04-21 | C159: FL | D159: 5240 | E159: Brosimum_rubescens_Taub. | F159: SIMP | G159: 5 | H159: 1 | I159: 5 | J159: F | K159: 1 | L159: AF | M159: 109442 | N159: 1268 | O159: 1748 | P159: 3258.871789
A160: 0 | B160: 2008-04-21 | C160: FL | D160: 5240 | E160: Brosimum_rubescens_Taub. | F160: SIMP | G160: 5 | H160: 1 | I160: 5 | J160: F | K160: 2 | L160: AF | M160: 128939 | N160: 1268 | O160: 1748 | P160: 3839.437049
A161: 0 | B161: 2008-04-21 | C161: FL | D161: 5240 | E161: Brosimum_rubescens_Taub. | F161: SIMP | G161: 5 | H161: 1 | I161: 5 | J161: F | K161: 3 | L161: AF | M161: 122259 | N161: 1268 | O161: 1748 | P161: 3640.52563
A162: 0 | B162: 2008-04-21 | C162: FL | D162: 5240 | E162: Brosimum_rubescens_Taub. | F162: SIMP | G162: 5 | H162: 1 | I162: 5 | J162: F | K162: 4 | L162: AF | M162: 143323 | N162: 1268 | O162: 1748 | P162: 4267.751698
A163: 0 | B163: 2008-04-21 | C163: FL | D163: 5240 | E163: Brosimum_rubescens_Taub. | F163: SIMP | G163: 5 | H163: 1 | I163: 5 | J163: F | K163: 5 | L163: AF | M163: 176217 | N163: 1268 | O163: 1748 | P163: 5247.241552
A164: 0 | B164: 2008-04-21 | C164: FL | D164: 5240 | E164: Brosimum_rubescens_Taub. | F164: SIMP | G164: 5 | H164: 1 | I164: 5 | J164: P | K164: 6 | L164: AF | M164: 789 | N164: 1268 | O164: 1748 | P164: 23.49417811
A165: 0 | B165: 2008-04-21 | C165: FL | D165: 5240 | E165: Brosimum_rubescens_Taub. | F165: SIMP | G165: 5 | H165: 1 | I165: 5 | J165: P | K165: 7 | L165: AF | M165: 964 | N165: 1268 | O165: 1748 | P165: 28.70518086
A166: 0 | B166: 2008-04-21 | C166: FL | D166: 5240 | E166: Brosimum_rubescens_Taub. | F166: SIMP | G166: 5 | H166: 1 | I166: 5 | J166: P | K166: 8 | L166: AF | M166: 745 | N166: 1268 | O166: 1748 | P166: 22.18398314
A167: 0 | B167: 2008-04-21 | C167: FL | D167: 5240 | E167: Brosimum_rubescens_Taub. | F167: SIMP | G167: 5 | H167: 1 | I167: 5 | J167: P | K167: 9 | L167: AF | M167: 850 | N167: 1268 | O167: 1748 | P167: 25.31058479
A168: 0 | B168: 2008-04-21 | C168: FL | D168: 5240 | E168: Brosimum_rubescens_Taub. | F168: SIMP | G168: 5 | H168: 1 | I168: 5 | J168: P | K168: 10 | L168: AF | M168: 1044 | N168: 1268 | O168: 1748 | P168: 31.08735355
A169: 0 | B169: 2008-05-27 | C169: KM_37 | D169: 252214 | E169: Brosimum_rubescens_Taub. | F169: SIMP | G169: 5 | H169: 1 | I169: 5 | J169: F | K169: 1 | L169: AF | M169: 314916 | N169: 1268 | O169: 1748 | P169: 9377.303669
A170: 0 | B170: 2008-05-27 | C170: KM_37 | D170: 252214 | E170: Brosimum_rubescens_Taub. | F170: SIMP | G170: 5 | H170: 1 | I170: 5 | J170: F | K170: 2 | L170: AF | M170: 271454 | N170: 1268 | O170: 1748 | P170: 8083.128803
A171: 0 | B171: 2008-05-27 | C171: KM_37 | D171: 252214 | E171: Brosimum_rubescens_Taub. | F171: SIMP | G171: 5 | H171: 1 | I171: 5 | J171: F | K171: 3 | L171: AF | M171: 283186 | N171: 1268 | O171: 1748 | P171: 8432.474428
A172: 0 | B172: 2008-05-27 | C172: KM_37 | D172: 252214 | E172: Brosimum_rubescens_Taub. | F172: SIMP | G172: 5 | H172: 1 | I172: 5 | J172: F | K172: 4 | L172: AF | M172: 322129 | N172: 1268 | O172: 1748 | P172: 9592.086314
A173: 0 | B173: 2008-05-27 | C173: KM_37 | D173: 252214 | E173: Brosimum_rubescens_Taub. | F173: SIMP | G173: 5 | H173: 1 | I173: 5 | J173: F | K173: 5 | L173: AF | M173: 319124 | N173: 1268 | O173: 1748 | P173: 9502.605953
A174: 0 | B174: 2008-05-27 | C174: KM_37 | D174: 252214 | E174: Brosimum_rubescens_Taub. | F174: SIMP | G174: 5 | H174: 1 | I174: 5 | J174: P | K174: 6 | L174: AF | M174: 1647 | N174: 1268 | O174: 1748 | P174: 49.04298017
A175: 0 | B175: 2008-05-27 | C175: KM_37 | D175: 252214 | E175: Brosimum_rubescens_Taub. | F175: SIMP | G175: 5 | H175: 1 | I175: 5 | J175: P | K175: 7 | L175: AF | M175: 1361 | N175: 1268 | O175: 1748 | P175: 40.52671282
A176: 0 | B176: 2008-05-27 | C176: KM_37 | D176: 252214 | E176: Brosimum_rubescens_Taub. | F176: SIMP | G176: 5 | H176: 1 | I176: 5 | J176: P | K176: 8 | L176: AF | M176: 1900 | N176: 1268 | O176: 1748 | P176: 56.57660129
A177: 0 | B177: 2008-05-27 | C177: KM_37 | D177: 252214 | E177: Brosimum_rubescens_Taub. | F177: SIMP | G177: 5 | H177: 1 | I177: 5 | J177: P | K177: 9 | L177: AF | M177: 1313 | N177: 1268 | O177: 1748 | P177: 39.09740921
A178: 0 | B178: 2008-05-27 | C178: KM_37 | D178: 252214 | E178: Brosimum_rubescens_Taub. | F178: SIMP | G178: 5 | H178: 1 | I178: 5 | J178: P | K178: 10 | L178: AF | M178: 1663 | N178: 1268 | O178: 1748 | P178: 49.51941471
A179: 0 | B179: 2008-04-01 | C179: CF | D179: 1189 | E179: Casearia_javitensis_Kunth | F179: SIMP | G179: 5 | H179: 1 | I179: 5 | J179: F | K179: 1 | L179: AF | M179: 1658319 | N179: 2534 | O179: 3494 | P179: 12361.82243
A180: 0 | B180: 2008-04-01 | C180: CF | D180: 1189 | E180: Casearia_javitensis_Kunth | F180: SIMP | G180: 5 | H180: 1 | I180: 5 | J180: F | K180: 2 | L180: AF | M180: 1797107 | N180: 2534 | O180: 3494 | P180: 13396.40782
A181: 0 | B181: 2008-04-01 | C181: CF | D181: 1189 | E181: Casearia_javitensis_Kunth | F181: SIMP | G181: 5 | H181: 1 | I181: 5 | J181: F | K181: 3 | L181: AF | M181: 1147771 | N181: 2534 | O181: 3494 | P181: 8555.978249
A182: 0 | B182: 2008-04-01 | C182: CF | D182: 1189 | E182: Casearia_javitensis_Kunth | F182: SIMP | G182: 5 | H182: 1 | I182: 5 | J182: F | K182: 4 | L182: AF | M182: 1603750 | N182: 2534 | O182: 3494 | P182: 11955.04166
A183: 0 | B183: 2008-04-01 | C183: CF | D183: 1189 | E183: Casearia_javitensis_Kunth | F183: SIMP | G183: 5 | H183: 1 | I183: 5 | J183: F | K183: 5 | L183: AF | M183: 1386474 | N183: 2534 | O183: 3494 | P183: 10335.37299
A184: 0 | B184: 2008-04-01 | C184: CF | D184: 1189 | E184: Casearia_javitensis_Kunth | F184: SIMP | G184: 5 | H184: 1 | I184: 5 | J184: P | K184: 6 | L184: AF | M184: 5328 | N184: 2534 | O184: 3494 | P184: 39.71720153
A185: 0 | B185: 2008-04-01 | C185: CF | D185: 1189 | E185: Casearia_javitensis_Kunth | F185: SIMP | G185: 5 | H185: 1 | I185: 5 | J185: P | K185: 7 | L185: AF | M185: 6366 | N185: 2534 | O185: 3494 | P185: 47.45489957
A186: 0 | B186: 2008-04-01 | C186: CF | D186: 1189 | E186: Casearia_javitensis_Kunth | F186: SIMP | G186: 5 | H186: 1 | I186: 5 | J186: P | K186: 8 | L186: AF | M186: 5138 | N186: 2534 | O186: 3494 | P186: 38.30085988
A187: 0 | B187: 2008-04-01 | C187: CF | D187: 1189 | E187: Casearia_javitensis_Kunth | F187: SIMP | G187: 5 | H187: 1 | I187: 5 | J187: P | K187: 9 | L187: AF | M187: 4528 | N187: 2534 | O187: 3494 | P187: 33.75365775
A188: 0 | B188: 2008-04-01 | C188: CF | D188: 1189 | E188: Casearia_javitensis_Kunth | F188: SIMP | G188: 5 | H188: 1 | I188: 5 | J188: P | K188: 10 | L188: AF | M188: 5432 | N188: 2534 | O188: 3494 | P188: 40.49246222
A189: 0 | B189: 2008-04-01 | C189: CF | D189: 1193 | E189: Casearia_javitensis_Kunth | F189: SIMP | G189: 5 | H189: 1 | I189: 5 | J189: F | K189: 1 | L189: AF | M189: 2475889 | N189: 2534 | O189: 3494 | P189: 18456.34053
A190: 0 | B190: 2008-04-01 | C190: CF | D190: 1193 | E190: Casearia_javitensis_Kunth | F190: SIMP | G190: 5 | H190: 1 | I190: 5 | J190: F | K190: 2 | L190: AF | M190: 1334018 | N190: 2534 | O190: 3494 | P190: 9944.343421
A191: 0 | B191: 2008-04-01 | C191: CF | D191: 1193 | E191: Casearia_javitensis_Kunth | F191: SIMP | G191: 5 | H191: 1 | I191: 5 | J191: F | K191: 3 | L191: AF | M191: 2177492 | N191: 2534 | O191: 3494 | P191: 16231.96107
A192: 0 | B192: 2008-04-01 | C192: CF | D192: 1193 | E192: Casearia_javitensis_Kunth | F192: SIMP | G192: 5 | H192: 1 | I192: 5 | J192: F | K192: 4 | L192: AF | M192: 2038409 | N192: 2534 | O192: 3494 | P192: 15195.17662
A193: 0 | B193: 2008-04-01 | C193: CF | D193: 1193 | E193: Casearia_javitensis_Kunth | F193: SIMP | G193: 5 | H193: 1 | I193: 5 | J193: F | K193: 5 | L193: AF | M193: 2201470 | N193: 2534 | O193: 3494 | P193: 16410.70339
A194: 0 | B194: 2008-04-01 | C194: CF | D194: 1193 | E194: Casearia_javitensis_Kunth | F194: SIMP | G194: 5 | H194: 1 | I194: 5 | J194: P | K194: 6 | L194: AF | M194: 7642 | N194: 2534 | O194: 3494 | P194: =66000*M194/(N194*O194) -> 56.96675189
A195: 0 | B195: 2008-04-01 | C195: CF | D195: 1193 | E195: Casearia_javitensis_Kunth | F195: SIMP | G195: 5 | H195: 1 | I195: 5 | J195: P | K195: 7 | L195: AF | M195: 6242 | N195: 2534 | O195: 3494 | P195: 46.53055029
A196: 0 | B196: 2008-04-01 | C196: CF | D196: 1193 | E196: Casearia_javitensis_Kunth | F196: SIMP | G196: 5 | H196: 1 | I196: 5 | J196: P | K196: 8 | L196: AF | M196: 7845 | N196: 2534 | O196: 3494 | P196: 58.48000112
A197: 0 | B197: 2008-04-01 | C197: CF | D197: 1193 | E197: Casearia_javitensis_Kunth | F197: SIMP | G197: 5 | H197: 1 | I197: 5 | J197: P | K197: 9 | L197: AF | M197: 7028 | N197: 2534 | O197: 3494 | P197: 52.38973204
A198: 0 | B198: 2008-04-01 | C198: CF | D198: 1193 | E198: Casearia_javitensis_Kunth | F198: SIMP | G198: 5 | H198: 1 | I198: 5 | J198: P | K198: 10 | L198: AF | M198: 10730 | N198: 2534 | O198: 3494 | P198: 79.98603085
A199: 0 | B199: 2008-04-02 | C199: CF | D199: 1304 | E199: Casearia_javitensis_Kunth | F199: SIMP | G199: 5 | H199: 1 | I199: 5 | J199: F | K199: 1 | L199: AF | M199: 1084605 | N199: 2534 | O199: 3494 | P199: 8085.111742
A200: 0 | B200: 2008-04-02 | C200: CF | D200: 1304 | E200: Casearia_javitensis_Kunth | F200: SIMP | G200: 5 | H200: 1 | I200: 5 | J200: F | K200: 2 | L200: AF | M200: 1378086 | N200: 2534 | O200: 3494 | P200: 10272.84523
... 4300 more rows

Sheet TD_SLA
A3: Rótulos de Linha
A4: Abarema_cochleata_(Willd.)_Barneby_&_J._W._Grimes
A5: Aniba_burchellii/panurensis_s.l.
A6: Aniba_canelilla_(Kunth)_Mez
A7: Anisophyllea_manausensis_Pires_&_W._A._Rodrigues
A8: Aspidosperma_carapanauba_Pichon
A9: Aspidosperma_oblongum_A._DC.
A10: Bocageopsis_multiflora_(Mart.)_R._E._Fries
A11: Bocoa_viridiflora_(Ducke)_Cowan
A12: Brosimum_guianense_(Aubl.)_Huber
A13: Brosimum_parinarioides_Ducke
A14: Brosimum_rubescens_Taub.
A15: Buchenavia_grandis_Ducke
A16: Cariniana_decandra_Ducke
A17: Caryocar_villosum_(Aubl.)_Pers.
A18: Casearia_javitensis_Kunth
A19: Chaunochiton_kappleri_(Engl.)_Ducke
A20: Chrysophyllum_lucentifolium_Cronquist
A21: Chrysophyllum_pomiferum_(Eyma)_T._D._Penn.
A22: Chrysophyllum_wilsonii_Penn.
A23: Clarisia_racemosa_Ruiz_&_Pav.
A24: Conceveiba_hostmannii_Benth.
A25: Corythophora_alta_R._Knuth
A26: Corythophora_rimosa_W._A._Rodrigues
A27: Couepia_excelsa_Ducke
A28: Couepia_longipendula_Pilger
A29: Cynometra_longicuspis_Ducke
A30: Dicorynia_guianensis_Amshoff
A31: Dinizia_excelsa_Ducke
A32: Dipteryx_magnifica_(Ducke)_Ducke
A33: Dipteryx_odorata_(Aubl.)_Willd.
A34: Drypetes_variabilis_Uittien
A35: Duckeodendron_cestroides_Kuhlm.
A36: Duguetia_echinophora_R._E._Fries
A37: Duguetia_manausensis_Maas_&_Boon
A38: Dussia_discolor_(Benth.)_Amshoff
A39: Ecclinusa_guianensis_Eyma
A40: Endopleura_uchi_(Huber)_Cuatrec
A41: Eperua_glabriflora_(Ducke)_Cowan
A42: Erisma_bicolor_Ducke
A43: Eschweilera_amazoniciformis_S._A._Mori
A44: Eschweilera_atropetiolata_S._A._Mori
A45: Eschweilera_collina_Eyma
A46: Eschweilera_coriacea_(DC.)_S._A._Mori
A47: Eschweilera_cyathiformis_S._A._Mori
A48: Eschweilera_grandiflora_(Aubl.)_Sandw.
A49: Eschweilera_micrantha_(O._Berg)_Miers
A50: Eschweilera_pseudodecolorans_S._A._Mori
A51: Eschweilera_rankiniae_S._A._Mori
A52: Eschweilera_romeu-cardosoi_S._A._Mori
A53: Eschweilera_truncata_A._C._Smith
A54: Eschweilera_wachenheimii_(Benoist)_Sandw.
A55: Fusaea_longifolia_(Aubl.)_Saff.
A56: Geissospermum_argenteum_Woodson
A57: Glycydendron_amazonicum_Ducke
A58: Goupia_glabra_Aubl.
A59: Guarea_convergens_Penn.
A60: Guarea_sp._3
A61: Heisteria_laxiflora_Engl.
A62: Helicostylis_tomentosa_(Poepp._&_Endl.)_Rusby
A63: Hevea_guianensis_Aubl.
A64: Inga_alba_(Sw.)_Willd.
A65: Inga_capitata_Desv.
A66: Inga_paraensis_Ducke
A67: Inga_rubiginosa_(L._C._Rich.)_DC.
A68: Inga_sp._7
A69: Lecythis_chartacea_Berg
A70: Lecythis_prancei_S._A._Mori
A71: Licania_caudata_Prance
A72: Licania_heteromorpha_Benth.
A73: Licania_impressa_Prance
A74: Licania_sp._9
A75: Licaria_cannella_(Meissn.)_Kosterm.
A76: Lueheopsis_rosea_(Ducke)_Burret
A77: Macrolobium_angustifolium_(Benth.)_Cowan
A78: Manilkara_bidentata_(A._DC.)_A._Chev.
A79: Manilkara_huberi_(Ducke)_A._Chev.
A80: Maquira_sclerophylla_(Ducke)_C._C._Berg
A81: Mezilaurus_duckei_van_der_Werff
A82: Mezilaurus_sp._nov._1
A83: Miconia_burchellii_Triana
A84: Micropholis_casiquiarensis/mensalis
A85: Micropholis_cylindrocarpa_(Poepp.)_Pierre
A86: Micropholis_guyanensis_(A._DC.)_Pierre
A87: Micropholis_venulosa_(Mart._&_Eichler)_Pierre
A88: Minquartia_guianensis_Aubl.
A89: Mouriri_angulicosta/duckeana/duckeanoides
A90: Myrcia_grandis_McVaugh
A91: Naucleopsis_caloneura_(Huber)_Ducke
A92: Neea_aff._madeirana_Standl.
A93: Neea_sp._2
A94: Neea_sp._3
A95: Ocotea_cinerea_van_der_Werff
A96: Ocotea_nigrescens_Vicentini
A97: Ocotea_percurrens_Vicentini
A98: Onychopetalum_amazonicum_R._E._Fries
A99: Osteophloeum_platyspermum_(A._DC.)_Warb.
A100: Paramachaerium_ormosioides_(Ducke)_Ducke
A101: Parkia_decussata_Ducke
A102: Parkia_pendula_(Willd.)_Walp.
A103: Pausandra_macropetala_Ducke
A104: Peltogyne_catingae_Ducke
A105: Peltogyne_excelsa_Ducke
A106: Pouteria_aff._engleri_Eyma
A107: Pouteria_anomala_(Pires)_T._D._Penn.
A108: Pouteria_cladantha_Sandw.
A109: Pouteria_durlandii/peruviensis
A110: Pouteria_engleri_Eyma
A111: Pouteria_filipes_Eyma
A112: Pouteria_fimbriata_Baehni
A113: Pouteria_flavilatex_Penn.
A114: Pouteria_guianensis_Aubl.
A115: Pouteria_hispida_Eyma
A116: Pouteria_macrophylla_(Lam.)_Eyma
A117: Pouteria_manaosensis_(Aubrev._&_Pellegr.)_T._D._Penn.
A118: Pouteria_pentamera_Penn.
A119: Pouteria_reticulata_(Engl.)_Eyma
A120: Pouteria_retinervis_T._D._Penn.
A121: Pouteria_rostrata_(Huber)_Baehni
A122: Pouteria_sp._9
A123: Protium_altsonii_Sandwith
A124: Protium_apiculatum_Swart
A125: Protium_decandrum_(Aubl.)_Marchand
A126: Protium_guianense_(Aubl.)_Marchand
A127: Protium_hebetatum_Daly
A128: Protium_sagotianum_Marchand
A129: Protium_tenuifolium_(Engl.)_Engl.
A130: Pseudolmedia_laevis_(Ruiz_&_Pav.)_J._F._Macbr.
A131: Pseudopiptadenia_psilostachya_(DC.)_Lewis_&_Lima
A132: Pseudopiptadenia_suaveolens_(Miq.)_Grimes
A133: Qualea_labouriauana_Paula
A134: Qualea_paraensis_Ducke
A135: Rhodostemonodaphne_grandis_(Mez)_Rohwer
A136: Rinorea_flavescens_(Aubl.)_Kuntze
A137: Rinorea_guianensis_Aubl.
A138: Rinorea_sp._1
A139: Sacoglottis_mattogrossensis_Malme
A140: Sclerolobium_melinonii_Harms
A141: Sclerolobium_sp._1
A142: Sclerolobium_sp._5
A143: Scleronema_micranthum_(Ducke)_Ducke
A144: Sloanea_eichleri_K._Schum.
A145: Sloanea_floribunda_Spruce_ex_Benth.
A146: Swartzia_polyphylla_DC.
A147: Swartzia_recurva_Poepp.
A148: Swartzia_reticulata_Ducke
A149: Swartzia_schomburgkii_Benth.
A150: Tachigali_plumbea_Ducke
A151: Theobroma_sylvestris_Aubl._ex_Mart.
A152: Trymatococcus_amazonicus_Poepp._&_Endl.
A153: Unonopsis_duckei_R._E._Fries
A154: Vantanea_parviflora_Lam.
A155: Virola_calophylla_Warb.
A156: Vochysia_obidensis_(Huber)_Ducke
A157: Zygia_racemosa_(Ducke)_Barn._&_Grimes
A158: Caryocar_pallidum_A._C._Smith
A159: Couratari_stellata_A._C._Smith
A160: Total geral

Sheet LS
A1: SAÍDA | B1: DATA | C1: LOCAL | D1: PLACA | E1: ESPÉCIE | F1: FOLHA | G1: NF | H1: NUF | I1: OBJETO | J1: FRAGMENTO | K1: TIPO | L1: ÁREA (PX2) | M1: ALTURA DA IMAGEM | N1: LARGURA DA IMAGEM | O1: ÁREA (mm2) | P1: OBS
A2: 0 | B2: 2008-05-27 | C2: KM_37 | D2: 242474 | E2: Aniba_burchellii/panurensis_s.l. | F2: SIMP | G2: 5 | H2: 5 | I2: F | J2: 1 | K2: LS | L2: 92937 | M2: 1268 | N2: 1748 | O2: =66000*L2/(M2*N2) -> 2767.399786
A3: 0 | B3: 2008-05-27 | C3: KM_37 | D3: 242474 | E3: Aniba_burchellii/panurensis_s.l. | F3: SIMP | G3: 5 | H3: 5 | I3: F | J3: 2 | K3: LS | L3: 112733 | M3: 1268 | N3: 1748 | O3: =66000*L3/(M3*N3) -> 3356.868417
A4: 0 | B4: 2008-05-27 | C4: KM_37 | D4: 242474 | E4: Aniba_burchellii/panurensis_s.l. | F4: SIMP | G4: 5 | H4: 5 | I4: F | J4: 3 | K4: LS | L4: 97961 | M4: 1268 | N4: 1748 | O4: =66000*L4/(M4*N4) -> 2917.000231
A5: 0 | B5: 2008-05-27 | C5: KM_37 | D5: 242474 | E5: Aniba_burchellii/panurensis_s.l. | F5: SIMP | G5: 5 | H5: 5 | I5: F | J5: 4 | K5: LS | L5: 105615 | M5: 1268 | N5: 1748 | O5: =66000*L5/(M5*N5) -> 3144.914603
A6: 0 | B6: 2008-05-27 | C6: KM_37 | D6: 242474 | E6: Aniba_burchellii/panurensis_s.l. | F6: SIMP | G6: 5 | H6: 5 | I6: F | J6: 5 | K6: LS | L6: 81178 | M6: 1268 | N6: 1748 | O6: =66000*L6/(M6*N6) -> 2417.250179
A7: 0 | B7: 2008-01-28 | C7: KM_41 | D7: 288 | E7: Aniba_canelilla_(Kunth)_Mez | F7: SIMP | G7: 5 | H7: 5 | I7: F | J7: 1 | K7: LS | L7: 2889298 | M7: 5072 | N7: 6990 | O7: =66000*L7/(M7*N7) -> 5378.731333
A8: 0 | B8: 2008-01-28 | C8: KM_41 | D8: 288 | E8: Aniba_canelilla_(Kunth)_Mez | F8: SIMP | G8: 5 | H8: 5 | I8: F | J8: 2 | K8: LS | L8: 4495676 | M8: 5072 | N8: 6990 | O8: =66000*L8/(M8*N8) -> 8369.1725
A9: 0 | B9: 2008-01-28 | C9: KM_41 | D9: 288 | E9: Aniba_canelilla_(Kunth)_Mez | F9: SIMP | G9: 5 | H9: 5 | I9: F | J9: 3 | K9: LS | L9: 3304651 | M9: 5072 | N9: 6990 | O9: =66000*L9/(M9*N9) -> 6151.954516
A10: 0 | B10: 2008-01-28 | C10: KM_41 | D10: 288 | E10: Aniba_canelilla_(Kunth)_Mez | F10: SIMP | G10: 5 | H10: 5 | I10: F | J10: 4 | K10: LS | L10: 2556398 | M10: 5072 | N10: 6990 | O10: =66000*L10/(M10*N10) -> 4759.00306
A11: 0 | B11: 2008-01-28 | C11: KM_41 | D11: 288 | E11: Aniba_canelilla_(Kunth)_Mez | F11: SIMP | G11: 5 | H11: 5 | I11: F | J11: 5 | K11: LS | L11: 2056718 | M11: 5072 | N11: 6990 | O11: =66000*L11/(M11*N11) -> 3828.79632
A12: 0 | B12: 2008-04-01 | C12: CF | D12: 1201 | E12: Bocageopsis_multiflora_(Mart.)_R._E._Fries | F12: SIMP | G12: 5 | H12: 5 | I12: F | J12: 1 | K12: LS | L12: 322162 | M12: 2534 | N12: 3494 | O12: =66000*L12/(M12*N12) -> 2401.533986
A13: 0 | B13: 2008-04-01 | C13: CF | D13: 1201 | E13: Bocageopsis_multiflora_(Mart.)_R._E._Fries | F13: SIMP | G13: 5 | H13: 5 | I13: F | J13: 2 | K13: LS | L13: 229026 | M13: 2534 | N13: 3494 | O13: =66000*L13/(M13*N13) -> 1707.25822
A14: 0 | B14: 2008-04-01 | C14: CF | D14: 1201 | E14: Bocageopsis_multiflora_(Mart.)_R._E._Fries | F14: SIMP | G14: 5 | H14: 5 | I14: F | J14: 3 | K14: LS | L14: 251773 | M14: 2534 | N14: 3494 | O14: =66000*L14/(M14*N14) -> 1876.824133
A15: 0 | B15: 2008-04-01 | C15: CF | D15: 1201 | E15: Bocageopsis_multiflora_(Mart.)_R._E._Fries | F15: SIMP | G15: 5 | H15: 5 | I15: F | J15: 4 | K15: LS | L15: 203424 | M15: 2534 | N15: 3494 | O15: =66000*L15/(M15*N15) -> 1516.409911
A16: 0 | B16: 2008-04-01 | C16: CF | D16: 1201 | E16: Bocageopsis_multiflora_(Mart.)_R._E._Fries | F16: SIMP | G16: 5 | H16: 5 | I16: F | J16: 5 | K16: LS | L16: 243327 | M16: 2534 | N16: 3494 | O16: =66000*L16/(M16*N16) -> 1813.864019
A17: 0 | B17: 2008-04-03 | C17: CF | D17: 6020 | E17: Bocageopsis_multiflora_(Mart.)_R._E._Fries | F17: SIMP | G17: 5 | H17: 5 | I17: F | J17: 1 | K17: LS | L17: 278413 | M17: 2535 | N17: 3495 | O17: =66000*L17/(M17*N17) -> 2073.99785
A18: 0 | B18: 2008-04-03 | C18: CF | D18: 6020 | E18: Bocageopsis_multiflora_(Mart.)_R._E._Fries | F18: SIMP | G18: 5 | H18: 5 | I18: F | J18: 2 | K18: LS | L18: 327704 | M18: 2535 | N18: 3495 | O18: =66000*L18/(M18*N18) -> 2441.184109
A19: 0 | B19: 2008-04-03 | C19: CF | D19: 6020 | E19: Bocageopsis_multiflora_(Mart.)_R._E._Fries | F19: SIMP | G19: 5 | H19: 5 | I19: F | J19: 3 | K19: LS | L19: 307930 | M19: 2535 | N19: 3495 | O19: =66000*L19/(M19*N19) -> 2293.880522
A20: 0 | B20: 2008-04-03 | C20: CF | D20: 6020 | E20: Bocageopsis_multiflora_(Mart.)_R._E._Fries | F20: SIMP | G20: 5 | H20: 5 | I20: F | J20: 4 | K20: LS | L20: 330313 | M20: 2535 | N20: 3495 | O20: =66000*L20/(M20*N20) -> 2460.619482
A21: 0 | B21: 2008-04-03 | C21: CF | D21: 6020 | E21: Bocageopsis_multiflora_(Mart.)_R._E._Fries | F21: SIMP | G21: 5 | H21: 5 | I21: F | J21: 5 | K21: LS | L21: 312852 | M21: 2535 | N21: 3495 | O21: =66000*L21/(M21*N21) -> 2330.546258
A22: 0 | B22: 2008-04-03 | C22: CF | D22: 6023 | E22: Bocageopsis_multiflora_(Mart.)_R._E._Fries | F22: SIMP | G22: 5 | H22: 5 | I22: F | J22: 1 | K22: LS | L22: 354202 | M22: 2535 | N22: 3495 | O22: =66000*L22/(M22*N22) -> 2638.577173
A23: 0 | B23: 2008-04-03 | C23: CF | D23: 6023 | E23: Bocageopsis_multiflora_(Mart.)_R._E._Fries | F23: SIMP | G23: 5 | H23: 5 | I23: F | J23: 2 | K23: LS | L23: 285529 | M23: 2535 | N23: 3495 | O23: =66000*L23/(M23*N23) -> 2127.007475
A24: 0 | B24: 2008-04-03 | C24: CF | D24: 6023 | E24: Bocageopsis_multiflora_(Mart.)_R._E._Fries | F24: SIMP | G24: 5 | H24: 5 | I24: F | J24: 3 | K24: LS | L24: 322968 | M24: 2535 | N24: 3495 | O24: =66000*L24/(M24*N24) -> 2405.903954
A25: 0 | B25: 2008-04-03 | C25: CF | D25: 6023 | E25: Bocageopsis_multiflora_(Mart.)_R._E._Fries | F25: SIMP | G25: 5 | H25: 5 | I25: F | J25: 4 | K25: LS | L25: 425501 | M25: 2535 | N25: 3495 | O25: =66000*L25/(M25*N25) -> 3169.708883
A26: 0 | B26: 2008-04-03 | C26: CF | D26: 6023 | E26: Bocageopsis_multiflora_(Mart.)_R._E._Fries | F26: SIMP | G26: 5 | H26: 5 | I26: F | J26: 5 | K26: LS | L26: 299451 | M26: 2535 | N26: 3495 | O26: =66000*L26/(M26*N26) -> 2230.717424
A27: 0 | B27: 2008-04-20 | C27: FL | D27: 5345 | E27: Bocoa_viridiflora_(Ducke)_Cowan | F27: COMP | G27: 5 | H27: 15 | I27: F | J27: 1 | K27: LS | L27: 548306 | M27: 2535 | N27: 3495 | O27: =66000*L27/(M27*N27) -> 4084.527177
A28: 0 | B28: 2008-04-20 | C28: FL | D28: 5345 | E28: Bocoa_viridiflora_(Ducke)_Cowan | F28: COMP | G28: 5 | H28: 15 | I28: F | J28: 2 | K28: LS | L28: 305596 | M28: 2535 | N28: 3495 | O28: =66000*L28/(M28*N28) -> 2276.493723
A29: 0 | B29: 2008-04-20 | C29: FL | D29: 5345 | E29: Bocoa_viridiflora_(Ducke)_Cowan | F29: COMP | G29: 5 | H29: 15 | I29: F | J29: 3 | K29: LS | L29: 475092 | M29: 2535 | N29: 3495 | O29: =66000*L29/(M29*N29) -> 3539.129949
A30: 0 | B30: 2008-04-20 | C30: FL | D30: 5345 | E30: Bocoa_viridiflora_(Ducke)_Cowan | F30: COMP | G30: 5 | H30: 15 | I30: F | J30: 4 | K30: LS | L30: 708282 | M30: 2535 | N30: 3495 | O30: =66000*L30/(M30*N30) -> 5276.245524
A31: 0 | B31: 2008-04-20 | C31: FL | D31: 5345 | E31: Bocoa_viridiflora_(Ducke)_Cowan | F31: COMP | G31: 5 | H31: 15 | I31: F | J31: 5 | K31: LS | L31: 769424 | M31: 2535 | N31: 3495 | O31: =66000*L31/(M31*N31) -> 5731.714114
A32: 0 | B32: 2008-04-20 | C32: FL | D32: 5345 | E32: Bocoa_viridiflora_(Ducke)_Cowan | F32: COMP | G32: 5 | H32: 15 | I32: F | J32: 6 | K32: LS | L32: 804669 | M32: 2535 | N32: 3495 | O32: =66000*L32/(M32*N32) -> 5994.266704
A33: 0 | B33: 2008-04-20 | C33: FL | D33: 5345 | E33: Bocoa_viridiflora_(Ducke)_Cowan | F33: COMP | G33: 5 | H33: 15 | I33: F | J33: 7 | K33: LS | L33: 317294 | M33: 2535 | N33: 3495 | O33: =66000*L33/(M33*N33) -> 2363.636302
A34: 0 | B34: 2008-04-20 | C34: FL | D34: 5345 | E34: Bocoa_viridiflora_(Ducke)_Cowan | F34: COMP | G34: 5 | H34: 15 | I34: F | J34: 8 | K34: LS | L34: 369290 | M34: 2535 | N34: 3495 | O34: =66000*L34/(M34*N34) -> 2750.973072
A35: 0 | B35: 2008-04-20 | C35: FL | D35: 5345 | E35: Bocoa_viridiflora_(Ducke)_Cowan | F35: COMP | G35: 5 | H35: 15 | I35: F | J35: 9 | K35: LS | L35: 303048 | M35: 2535 | N35: 3495 | O35: =66000*L35/(M35*N35) -> 2257.512761
A36: 0 | B36: 2008-04-20 | C36: FL | D36: 5345 | E36: Bocoa_viridiflora_(Ducke)_Cowan | F36: COMP | G36: 5 | H36: 15 | I36: F | J36: 10 | K36: LS | L36: 385383 | M36: 2535 | N36: 3495 | O36: =66000*L36/(M36*N36) -> 2870.855576
A37: 0 | B37: 2008-04-20 | C37: FL | D37: 5345 | E37: Bocoa_viridiflora_(Ducke)_Cowan | F37: COMP | G37: 5 | H37: 15 | I37: F | J37: 11 | K37: LS | L37: 346049 | M37: 2535 | N37: 3495 | O37: =66000*L37/(M37*N37) -> 2577.842565
A38: 0 | B38: 2008-04-20 | C38: FL | D38: 5345 | E38: Bocoa_viridiflora_(Ducke)_Cowan | F38: COMP | G38: 5 | H38: 15 | I38: F | J38: 12 | K38: LS | L38: 264966 | M38: 2535 | N38: 3495 | O38: =66000*L38/(M38*N38) -> 1973.826345
A39: 0 | B39: 2008-04-20 | C39: FL | D39: 5345 | E39: Bocoa_viridiflora_(Ducke)_Cowan | F39: COMP | G39: 5 | H39: 15 | I39: F | J39: 13 | K39: LS | L39: 358702 | M39: 2535 | N39: 3495 | O39: =66000*L39/(M39*N39) -> 2672.09928
A40: 0 | B40: 2008-04-20 | C40: FL | D40: 5345 | E40: Bocoa_viridiflora_(Ducke)_Cowan | F40: COMP | G40: 5 | H40: 15 | I40: F | J40: 14 | K40: LS | L40: 308360 | M40: 2535 | N40: 3495 | O40: =66000*L40/(M40*N40) -> 2297.083746
A41: 0 | B41: 2008-04-20 | C41: FL | D41: 5345 | E41: Bocoa_viridiflora_(Ducke)_Cowan | F41: COMP | G41: 5 | H41: 15 | I41: F | J41: 15 | K41: LS | L41: 422339 | M41: 2535 | N41: 3495 | O41: =66000*L41/(M41*N41) -> 3146.154015
A42: 0 | B42: 2008-04-19 | C42: FL | D42: 5505 | E42: Bocoa_viridiflora_(Ducke)_Cowan | F42: COMP | G42: 5 | H42: 22 | I42: F | J42: 1 | K42: LS | L42: 691132 | M42: 2535 | N42: 3495 | O42: =66000*L42/(M42*N42) -> 5148.48905
A43: 0 | B43: 2008-04-19 | C43: FL | D43: 5505 | E43: Bocoa_viridiflora_(Ducke)_Cowan | F43: COMP | G43: 5 | H43: 22 | I43: F | J43: 2 | K43: LS | L43: 803686 | M43: 2535 | N43: 3495 | O43: =66000*L43/(M43*N43) -> 5986.943986
A44: 0 | B44: 2008-04-19 | C44: FL | D44: 5505 | E44: Bocoa_viridiflora_(Ducke)_Cowan | F44: COMP | G44: 5 | H44: 22 | I44: F | J44: 3 | K44: LS | L44: 342283 | M44: 2535 | N44: 3495 | O44: =66000*L44/(M44*N44) -> 2549.788286
A45: 0 | B45: 2008-04-19 | C45: FL | D45: 5505 | E45: Bocoa_viridiflora_(Ducke)_Cowan | F45: COMP | G45: 5 | H45: 22 | I45: F | J45: 4 | K45: LS | L45: 350984 | M45: 2535 | N45: 3495 | O45: =66000*L45/(M45*N45) -> 2614.605142
A46: 0 | B46: 2008-04-19 | C46: FL | D46: 5505 | E46: Bocoa_viridiflora_(Ducke)_Cowan | F46: COMP | G46: 5 | H46: 22 | I46: F | J46: 5 | K46: LS | L46: 339320 | M46: 2535 | N46: 3495 | O46: =66000*L46/(M46*N46) -> 2527.715841
A47: 0 | B47: 2008-04-19 | C47: FL | D47: 5505 | E47: Bocoa_viridiflora_(Ducke)_Cowan | F47: COMP | G47: 5 | H47: 22 | I47: F | J47: 6 | K47: LS | L47: 820837 | M47: 2535 | N47: 3495 | O47: =66000*L47/(M47*N47) -> 6114.707909
A48: 0 | B48: 2008-04-19 | C48: FL | D48: 5505 | E48: Bocoa_viridiflora_(Ducke)_Cowan | F48: COMP | G48: 5 | H48: 22 | I48: F | J48: 7 | K48: LS | L48: 717610 | M48: 2535 | N48: 3495 | O48: =66000*L48/(M48*N48) -> 5345.733127
A49: 0 | B49: 2008-04-19 | C49: FL | D49: 5505 | E49: Bocoa_viridiflora_(Ducke)_Cowan | F49: COMP | G49: 5 | H49: 22 | I49: F | J49: 8 | K49: LS | L49: 280349 | M49: 2535 | N49: 3495 | O49: =66000*L49/(M49*N49) -> 2088.419805
A50: 0 | B50: 2008-04-19 | C50: FL | D50: 5505 | E50: Bocoa_viridiflora_(Ducke)_Cowan | F50: COMP | G50: 5 | H50: 22 | I50: F | J50: 9 | K50: LS | L50: 898403 | M50: 2535 | N50: 3495 | O50: =66000*L50/(M50*N50) -> 6692.524739
A51: 0 | B51: 2008-04-19 | C51: FL | D51: 5505 | E51: Bocoa_viridiflora_(Ducke)_Cowan | F51: COMP | G51: 5 | H51: 22 | I51: F | J51: 10 | K51: LS | L51: 566403 | M51: 2535 | N51: 3495 | O51: =66000*L51/(M51*N51) -> 4219.338192
A52: 0 | B52: 2008-04-19 | C52: FL | D52: 5505 | E52: Bocoa_viridiflora_(Ducke)_Cowan | F52: COMP | G52: 5 | H52: 22 | I52: F | J52: 11 | K52: LS | L52: 458983 | M52: 2535 | N52: 3495 | O52: =66000*L52/(M52*N52) -> 3419.128256
A53: 0 | B53: 2008-04-19 | C53: FL | D53: 5505 | E53: Bocoa_viridiflora_(Ducke)_Cowan | F53: COMP | G53: 5 | H53: 22 | I53: F | J53: 12 | K53: LS | L53: 444148 | M53: 2535 | N53: 3495 | O53: =66000*L53/(M53*N53) -> 3308.617044
A54: 0 | B54: 2008-04-19 | C54: FL | D54: 5505 | E54: Bocoa_viridiflora_(Ducke)_Cowan | F54: COMP | G54: 5 | H54: 22 | I54: F | J54: 13 | K54: LS | L54: 392573 | M54: 2535 | N54: 3495 | O54: =66000*L54/(M54*N54) -> 2924.416453
A55: 0 | B55: 2008-04-19 | C55: FL | D55: 5505 | E55: Bocoa_viridiflora_(Ducke)_Cowan | F55: COMP | G55: 5 | H55: 22 | I55: F | J55: 14 | K55: LS | L55: 393771 | M55: 2535 | N55: 3495 | O55: =66000*L55/(M55*N55) -> 2933.340783
A56: 0 | B56: 2008-04-19 | C56: FL | D56: 5505 | E56: Bocoa_viridiflora_(Ducke)_Cowan | F56: COMP | G56: 5 | H56: 22 | I56: F | J56: 15 | K56: LS | L56: 385505 | M56: 2535 | N56: 3495 | O56: =66000*L56/(M56*N56) -> 2871.764397
A57: 0 | B57: 2008-04-19 | C57: FL | D57: 5505 | E57: Bocoa_viridiflora_(Ducke)_Cowan | F57: COMP | G57: 5 | H57: 22 | I57: F | J57: 16 | K57: LS | L57: 565578 | M57: 2535 | N57: 3495 | O57: =66000*L57/(M57*N57) -> 4213.192473
A58: 0 | B58: 2008-04-19 | C58: FL | D58: 5505 | E58: Bocoa_viridiflora_(Ducke)_Cowan | F58: COMP | G58: 5 | H58: 22 | I58: F | J58: 17 | K58: LS | L58: 395864 | M58: 2535 | N58: 3495 | O58: =66000*L58/(M58*N58) -> 2948.932287
A59: 0 | B59: 2008-04-19 | C59: FL | D59: 5505 | E59: Bocoa_viridiflora_(Ducke)_Cowan | F59: COMP | G59: 5 | H59: 22 | I59: F | J59: 18 | K59: LS | L59: 898072 | M59: 2535 | N59: 3495 | O59: =66000*L59/(M59*N59) -> 6690.059002
A60: 0 | B60: 2008-04-19 | C60: FL | D60: 5505 | E60: Bocoa_viridiflora_(Ducke)_Cowan | F60: COMP | G60: 5 | H60: 22 | I60: F | J60: 19 | K60: LS | L60: 441904 | M60: 2535 | N60: 3495 | O60: =66000*L60/(M60*N60) -> 3291.900687
A61: 0 | B61: 2008-04-19 | C61: FL | D61: 5505 | E61: Bocoa_viridiflora_(Ducke)_Cowan | F61: COMP | G61: 5 | H61: 22 | I61: F | J61: 20 | K61: LS | L61: 386206 | M61: 2535 | N61: 3495 | O61: =66000*L61/(M61*N61) -> 2876.986396
A62: 0 | B62: 2008-04-19 | C62: FL | D62: 5505 | E62: Bocoa_viridiflora_(Ducke)_Cowan | F62: COMP | G62: 5 | H62: 22 | I62: F | J62: 21 | K62: LS | L62: 459135 | M62: 2535 | N62: 3495 | O62: =66000*L62/(M62*N62) -> 3420.260558
A63: 0 | B63: 2008-04-19 | C63: FL | D63: 5505 | E63: Bocoa_viridiflora_(Ducke)_Cowan | F63: COMP | G63: 5 | H63: 22 | I63: F | J63: 22 | K63: LS | L63: 394315 | M63: 2535 | N63: 3495 | O63: =66000*L63/(M63*N63) -> 2937.393233
A64: 0 | B64: 2008-04-19 | C64: FL | D64: 6573 | E64: Bocoa_viridiflora_(Ducke)_Cowan | F64: COMP | G64: 5 | H64: 15 | I64: F | J64: 1 | K64: LS | L64: 830484 | M64: 2535 | N64: 3495 | O64: =66000*L64/(M64*N64) -> 6186.571857
A65: 0 | B65: 2008-04-19 | C65: FL | D65: 6573 | E65: Bocoa_viridiflora_(Ducke)_Cowan | F65: COMP | G65: 5 | H65: 15 | I65: F | J65: 2 | K65: LS | L65: 917376 | M65: 2535 | N65: 3495 | O65: =66000*L65/(M65*N65) -> 6833.861391
A66: 0 | B66: 2008-04-19 | C66: FL | D66: 6573 | E66: Bocoa_viridiflora_(Ducke)_Cowan | F66: COMP | G66: 5 | H66: 15 | I66: F | J66: 3 | K66: LS | L66: 1106239 | M66: 2535 | N66: 3495 | O66: =66000*L66/(M66*N66) -> 8240.769315
A67: 0 | B67: 2008-04-19 | C67: FL | D67: 6573 | E67: Bocoa_viridiflora_(Ducke)_Cowan | F67: COMP | G67: 5 | H67: 15 | I67: F | J67: 4 | K67: LS | L67: 769710 | M67: 2535 | N67: 3495 | O67: =66000*L67/(M67*N67) -> 5733.84463
A68: 0 | B68: 2008-04-19 | C68: FL | D68: 6573 | E68: Bocoa_viridiflora_(Ducke)_Cowan | F68: COMP | G68: 5 | H68: 15 | I68: F | J68: 5 | K68: LS | L68: 847291 | M68: 2535 | N68: 3495 | O68: =66000*L68/(M68*N68) -> 6311.773201
A69: 0 | B69: 2008-04-19 | C69: FL | D69: 6573 | E69: Bocoa_viridiflora_(Ducke)_Cowan | F69: COMP | G69: 5 | H69: 15 | I69: F | J69: 6 | K69: LS | L69: 639851 | M69: 2535 | N69: 3495 | O69: =66000*L69/(M69*N69) -> 4766.47857
A70: 0 | B70: 2008-04-19 | C70: FL | D70: 6573 | E70: Bocoa_viridiflora_(Ducke)_Cowan | F70: COMP | G70: 5 | H70: 15 | I70: F | J70: 7 | K70: LS | L70: 449148 | M70: 2535 | N70: 3495 | O70: =66000*L70/(M70*N70) -> 3345.863829
A71: 0 | B71: 2008-04-19 | C71: FL | D71: 6573 | E71: Bocoa_viridiflora_(Ducke)_Cowan | F71: COMP | G71: 5 | H71: 15 | I71: F | J71: 8 | K71: LS | L71: 614819 | M71: 2535 | N71: 3495 | O71: =66000*L71/(M71*N71) -> 4580.006264
A72: 0 | B72: 2008-04-19 | C72: FL | D72: 6573 | E72: Bocoa_viridiflora_(Ducke)_Cowan | F72: COMP | G72: 5 | H72: 15 | I72: F | J72: 9 | K72: LS | L72: 606238 | M72: 2535 | N72: 3495 | O72: =66000*L72/(M72*N72) -> 4516.083331
A73: 0 | B73: 2008-04-19 | C73: FL | D73: 6573 | E73: Bocoa_viridiflora_(Ducke)_Cowan | F73: COMP | G73: 5 | H73: 15 | I73: F | J73: 10 | K73: LS | L73: 465724 | M73: 2535 | N73: 3495 | O73: =66000*L73/(M73*N73) -> 3469.344372
A74: 0 | B74: 2008-04-19 | C74: FL | D74: 6573 | E74: Bocoa_viridiflora_(Ducke)_Cowan | F74: COMP | G74: 5 | H74: 15 | I74: F | J74: 11 | K74: LS | L74: 413123 | M74: 2535 | N74: 3495 | O74: =66000*L74/(M74*N74) -> 3077.500741
A75: 0 | B75: 2008-04-19 | C75: FL | D75: 6573 | E75: Bocoa_viridiflora_(Ducke)_Cowan | F75: COMP | G75: 5 | H75: 15 | I75: F | J75: 12 | K75: LS | L75: 271490 | M75: 2535 | N75: 3495 | O75: =66000*L75/(M75*N75) -> 2022.425951
A76: 0 | B76: 2008-04-19 | C76: FL | D76: 6573 | E76: Bocoa_viridiflora_(Ducke)_Cowan | F76: COMP | G76: 5 | H76: 15 | I76: F | J76: 13 | K76: LS | L76: 362846 | M76: 2535 | N76: 3495 | O76: =66000*L76/(M76*N76) -> 2702.969415
A77: 0 | B77: 2008-04-19 | C77: FL | D77: 6573 | E77: Bocoa_viridiflora_(Ducke)_Cowan | F77: COMP | G77: 5 | H77: 15 | I77: F | J77: 14 | K77: LS | L77: 376120 | M77: 2535 | N77: 3495 | O77: =66000*L77/(M77*N77) -> 2801.852181
A78: 0 | B78: 2008-04-19 | C78: FL | D78: 6573 | E78: Bocoa_viridiflora_(Ducke)_Cowan | F78: COMP | G78: 5 | H78: 15 | I78: F | J78: 15 | K78: LS | L78: 500360 | M78: 2535 | N78: 3495 | O78: =66000*L78/(M78*N78) -> 3727.360303
A79: 0 | B79: 2008-05-10 | C79: KM_37 | D79: 51067 | E79: Bocoa_viridiflora_(Ducke)_Cowan | F79: COMP | G79: 5 | H79: 15 | I79: F | J79: 1 | K79: LS | L79: 763436 | M79: 2535 | N79: 3495 | O79: =66000*L79/(M79*N79) -> 5687.107364
A80: 0 | B80: 2008-05-10 | C80: KM_37 | D80: 51067 | E80: Bocoa_viridiflora_(Ducke)_Cowan | F80: COMP | G80: 5 | H80: 15 | I80: F | J80: 2 | K80: LS | L80: 693778 | M80: 2535 | N80: 3495 | O80: =66000*L80/(M80*N80) -> 5168.200049
A81: 0 | B81: 2008-05-10 | C81: KM_37 | D81: 51067 | E81: Bocoa_viridiflora_(Ducke)_Cowan | F81: COMP | G81: 5 | H81: 15 | I81: F | J81: 3 | K81: LS | L81: 964358 | M81: 2535 | N81: 3495 | O81: =66000*L81/(M81*N81) -> 7183.847085
A82: 0 | B82: 2008-05-10 | C82: KM_37 | D82: 51067 | E82: Bocoa_viridiflora_(Ducke)_Cowan | F82: COMP | G82: 5 | H82: 15 | I82: F | J82: 4 | K82: LS | L82: 1016962 | M82: 2535 | N82: 3495 | O82: =66000*L82/(M82*N82) -> 7575.713064
A83: 0 | B83: 2008-05-10 | C83: KM_37 | D83: 51067 | E83: Bocoa_viridiflora_(Ducke)_Cowan | F83: COMP | G83: 5 | H83: 15 | I83: F | J83: 5 | K83: LS | L83: 880528 | M83: 2535 | N83: 3495 | O83: =66000*L83/(M83*N83) -> 6559.367482
A84: 0 | B84: 2008-05-10 | C84: KM_37 | D84: 51067 | E84: Bocoa_viridiflora_(Ducke)_Cowan | F84: COMP | G84: 5 | H84: 15 | I84: F | J84: 6 | K84: LS | L84: 735415 | M84: 2535 | N84: 3495 | O84: =66000*L84/(M84*N84) -> 5478.368929
A85: 0 | B85: 2008-05-10 | C85: KM_37 | D85: 51067 | E85: Bocoa_viridiflora_(Ducke)_Cowan | F85: COMP | G85: 5 | H85: 15 | I85: F | J85: 7 | K85: LS | L85: 902760 | M85: 2535 | N85: 3495 | O85: =66000*L85/(M85*N85) -> 6724.981588
A86: 0 | B86: 2008-05-10 | C86: KM_37 | D86: 51067 | E86: Bocoa_viridiflora_(Ducke)_Cowan | F86: COMP | G86: 5 | H86: 15 | I86: F | J86: 8 | K86: LS | L86: 699030 | M86: 2535 | N86: 3495 | O86: =66000*L86/(M86*N86) -> 5207.324072
A87: 0 | B87: 2008-05-10 | C87: KM_37 | D87: 51067 | E87: Bocoa_viridiflora_(Ducke)_Cowan | F87: COMP | G87: 5 | H87: 15 | I87: F | J87: 9 | K87: LS | L87: 1034683 | M87: 2535 | N87: 3495 | O87: =66000*L87/(M87*N87) -> 7707.723121
A88: 0 | B88: 2008-05-10 | C88: KM_37 | D88: 51067 | E88: Bocoa_viridiflora_(Ducke)_Cowan | F88: COMP | G88: 5 | H88: 15 | I88: F | J88: 10 | K88: LS | L88: 755152 | M88: 2535 | N88: 3495 | O88: =66000*L88/(M88*N88) -> 5625.39689
A89: 0 | B89: 2008-05-10 | C89: KM_37 | D89: 51067 | E89: Bocoa_viridiflora_(Ducke)_Cowan | F89: COMP | G89: 5 | H89: 15 | I89: F | J89: 11 | K89: LS | L89: 995955 | M89: 2535 | N89: 3495 | O89: =66000*L89/(M89*N89) -> 7419.22442
A90: 0 | B90: 2008-05-10 | C90: KM_37 | D90: 51067 | E90: Bocoa_viridiflora_(Ducke)_Cowan | F90: COMP | G90: 5 | H90: 15 | I90: F | J90: 12 | K90: LS | L90: 675051 | M90: 2535 | N90: 3495 | O90: =66000*L90/(M90*N90) -> 5028.695939
A91: 0 | B91: 2008-05-10 | C91: KM_37 | D91: 51067 | E91: Bocoa_viridiflora_(Ducke)_Cowan | F91: COMP | G91: 5 | H91: 15 | I91: F | J91: 13 | K91: LS | L91: 693517 | M91: 2535 | N91: 3495 | O91: =66000*L91/(M91*N91) -> 5166.255767
A92: 0 | B92: 2008-05-10 | C92: KM_37 | D92: 51067 | E92: Bocoa_viridiflora_(Ducke)_Cowan | F92: COMP | G92: 5 | H92: 15 | I92: F | J92: 14 | K92: LS | L92: 593365 | M92: 2535 | N92: 3495 | O92: =66000*L92/(M92*N92) -> 4420.187758
A93: 0 | B93: 2008-05-10 | C93: KM_37 | D93: 51067 | E93: Bocoa_viridiflora_(Ducke)_Cowan | F93: COMP | G93: 5 | H93: 15 | I93: F | J93: 15 | K93: LS | L93: 665970 | M93: 2535 | N93: 3495 | O93: =66000*L93/(M93*N93) -> 4961.048328
A94: 0 | B94: 2008-04-19 | C94: FL | D94: 3869 | E94: Brosimum_rubescens_Taub. | F94: SIMP | G94: 5 | H94: 5 | I94: F | J94: 1 | K94: LS | L94: 271418 | M94: 1268 | N94: 1748 | O94: =66000*L94/(M94*N94) -> 8082.056826
A95: 0 | B95: 2008-04-19 | C95: FL | D95: 3869 | E95: Brosimum_rubescens_Taub. | F95: SIMP | G95: 5 | H95: 5 | I95: F | J95: 2 | K95: LS | L95: 253451 | M95: 1268 | N95: 1748 | O95: =66000*L95/(M95*N95) -> 7547.050618
A96: 0 | B96: 2008-04-19 | C96: FL | D96: 3869 | E96: Brosimum_rubescens_Taub. | F96: SIMP | G96: 5 | H96: 5 | I96: F | J96: 3 | K96: LS | L96: 338436 | M96: 1268 | N96: 1748 | O96: =66000*L96/(M96*N96) -> 10077.66244
A97: 0 | B97: 2008-04-19 | C97: FL | D97: 3869 | E97: Brosimum_rubescens_Taub. | F97: SIMP | G97: 5 | H97: 5 | I97: F | J97: 4 | K97: LS | L97: 256340 | M97: 1268 | N97: 1748 | O97: =66000*L97/(M97*N97) -> 7633.076829
A98: 0 | B98: 2008-04-19 | C98: FL | D98: 3869 | E98: Brosimum_rubescens_Taub. | F98: SIMP | G98: 5 | H98: 5 | I98: F | J98: 5 | K98: LS | L98: 201121 | M98: 1268 | N98: 1748 | O98: =66000*L98/(M98*N98) -> 5988.811909
A99: 0 | B99: 2008-04-18 | C99: FL | D99: 3999 | E99: Brosimum_rubescens_Taub. | F99: SIMP | G99: 5 | H99: 5 | I99: F | J99: 1 | K99: LS | L99: 58069 | M99: 1268 | N99: 1748 | O99: =66000*L99/(M99*N99) -> 1729.129821
A100: 0 | B100: 2008-04-18 | C100: FL | D100: 3999 | E100: Brosimum_rubescens_Taub. | F100: SIMP | G100: 5 | H100: 5 | I100: F | J100: 2 | K100: LS | L100: 69674 | M100: 1268 | N100: 1748 | O100: =66000*L100/(M100*N100) -> 2074.693746
A101: 0 | B101: 2008-04-18 | C101: FL | D101: 3999 | E101: Brosimum_rubescens_Taub. | F101: SIMP | G101: 5 | H101: 5 | I101: F | J101: 3 | K101: LS | L101: 66055 | M101: 1268 | N101: 1748 | O101: =66000*L101/(M101*N101) -> 1966.93021
A102: 0 | B102: 2008-04-18 | C102: FL | D102: 3999 | E102: Brosimum_rubescens_Taub. | F102: SIMP | G102: 5 | H102: 5 | I102: F | J102: 4 | K102: LS | L102: 74747 | M102: 1268 | N102: 1748 | O102: =66000*L102/(M102*N102) -> 2225.753272
A103: 0 | B103: 2008-04-18 | C103: FL | D103: 3999 | E103: Brosimum_rubescens_Taub. | F103: SIMP | G103: 5 | H103: 5 | I103: F | J103: 5 | K103: LS | L103: 62025 | M103: 1268 | N103: 1748 | O103: =66000*L103/(M103*N103) -> 1846.928261
A104: 0 | B104: 2008-04-21 | C104: FL | D104: 5240 | E104: Brosimum_rubescens_Taub. | F104: SIMP | G104: 5 | H104: 5 | I104: F | J104: 1 | K104: LS | L104: 109442 | M104: 1268 | N104: 1748 | O104: =66000*L104/(M104*N104) -> 3258.871789
A105: 0 | B105: 2008-04-21 | C105: FL | D105: 5240 | E105: Brosimum_rubescens_Taub. | F105: SIMP | G105: 5 | H105: 5 | I105: F | J105: 2 | K105: LS | L105: 128939 | M105: 1268 | N105: 1748 | O105: =66000*L105/(M105*N105) -> 3839.437049
A106: 0 | B106: 2008-04-21 | C106: FL | D106: 5240 | E106: Brosimum_rubescens_Taub. | F106: SIMP | G106: 5 | H106: 5 | I106: F | J106: 3 | K106: LS | L106: 122259 | M106: 1268 | N106: 1748 | O106: =66000*L106/(M106*N106) -> 3640.52563
A107: 0 | B107: 2008-04-21 | C107: FL | D107: 5240 | E107: Brosimum_rubescens_Taub. | F107: SIMP | G107: 5 | H107: 5 | I107: F | J107: 4 | K107: LS | L107: 143323 | M107: 1268 | N107: 1748 | O107: =66000*L107/(M107*N107) -> 4267.751698
A108: 0 | B108: 2008-04-21 | C108: FL | D108: 5240 | E108: Brosimum_rubescens_Taub. | F108: SIMP | G108: 5 | H108: 5 | I108: F | J108: 5 | K108: LS | L108: 176217 | M108: 1268 | N108: 1748 | O108: =66000*L108/(M108*N108) -> 5247.241552
A109: 0 | B109: 2008-05-27 | C109: KM_37 | D109: 252214 | E109: Brosimum_rubescens_Taub. | F109: SIMP | G109: 5 | H109: 5 | I109: F | J109: 1 | K109: LS | L109: 314916 | M109: 1268 | N109: 1748 | O109: =66000*L109/(M109*N109) -> 9377.303669
A110: 0 | B110: 2008-05-27 | C110: KM_37 | D110: 252214 | E110: Brosimum_rubescens_Taub. | F110: SIMP | G110: 5 | H110: 5 | I110: F | J110: 2 | K110: LS | L110: 271454 | M110: 1268 | N110: 1748 | O110: =66000*L110/(M110*N110) -> 8083.128803
A111: 0 | B111: 2008-05-27 | C111: KM_37 | D111: 252214 | E111: Brosimum_rubescens_Taub. | F111: SIMP | G111: 5 | H111: 5 | I111: F | J111: 3 | K111: LS | L111: 283186 | M111: 1268 | N111: 1748 | O111: =66000*L111/(M111*N111) -> 8432.474428
A112: 0 | B112: 2008-05-27 | C112: KM_37 | D112: 252214 | E112: Brosimum_rubescens_Taub. | F112: SIMP | G112: 5 | H112: 5 | I112: F | J112: 4 | K112: LS | L112: 322129 | M112: 1268 | N112: 1748 | O112: =66000*L112/(M112*N112) -> 9592.086314
A113: 0 | B113: 2008-05-27 | C113: KM_37 | D113: 252214 | E113: Brosimum_rubescens_Taub. | F113: SIMP | G113: 5 | H113: 5 | I113: F | J113: 5 | K113: LS | L113: 319124 | M113: 1268 | N113: 1748 | O113: =66000*L113/(M113*N113) -> 9502.605953
A114: 0 | B114: 2008-04-01 | C114: CF | D114: 1189 | E114: Casearia_javitensis_Kunth | F114: SIMP | G114: 5 | H114: 5 | I114: F | J114: 1 | K114: LS | L114: 1658319 | M114: 2534 | N114: 3494 | O114: =66000*L114/(M114*N114) -> 12361.82243
A115: 0 | B115: 2008-04-01 | C115: CF | D115: 1189 | E115: Casearia_javitensis_Kunth | F115: SIMP | G115: 5 | H115: 5 | I115: F | J115: 2 | K115: LS | L115: 1797107 | M115: 2534 | N115: 3494 | O115: =66000*L115/(M115*N115) -> 13396.40782
A116: 0 | B116: 2008-04-01 | C116: CF | D116: 1189 | E116: Casearia_javitensis_Kunth | F116: SIMP | G116: 5 | H116: 5 | I116: F | J116: 3 | K116: LS | L116: 1147771 | M116: 2534 | N116: 3494 | O116: =66000*L116/(M116*N116) -> 8555.978249
A117: 0 | B117: 2008-04-01 | C117: CF | D117: 1189 | E117: Casearia_javitensis_Kunth | F117: SIMP | G117: 5 | H117: 5 | I117: F | J117: 4 | K117: LS | L117: 1603750 | M117: 2534 | N117: 3494 | O117: =66000*L117/(M117*N117) -> 11955.04166
A118: 0 | B118: 2008-04-01 | C118: CF | D118: 1189 | E118: Casearia_javitensis_Kunth | F118: SIMP | G118: 5 | H118: 5 | I118: F | J118: 5 | K118: LS | L118: 1386474 | M118: 2534 | N118: 3494 | O118: =66000*L118/(M118*N118) -> 10335.37299
A119: 0 | B119: 2008-04-01 | C119: CF | D119: 1193 | E119: Casearia_javitensis_Kunth | F119: SIMP | G119: 5 | H119: 5 | I119: F | J119: 1 | K119: LS | L119: 2475889 | M119: 2534 | N119: 3494 | O119: =66000*L119/(M119*N119) -> 18456.34053
A120: 0 | B120: 2008-04-01 | C120: CF | D120: 1193 | E120: Casearia_javitensis_Kunth | F120: SIMP | G120: 5 | H120: 5 | I120: F | J120: 2 | K120: LS | L120: 1334018 | M120: 2534 | N120: 3494 | O120: =66000*L120/(M120*N120) -> 9944.343421
A121: 0 | B121: 2008-04-01 | C121: CF | D121: 1193 | E121: Casearia_javitensis_Kunth | F121: SIMP | G121: 5 | H121: 5 | I121: F | J121: 3 | K121: LS | L121: 2177492 | M121: 2534 | N121: 3494 | O121: =66000*L121/(M121*N121) -> 16231.96107
A122: 0 | B122: 2008-04-01 | C122: CF | D122: 1193 | E122: Casearia_javitensis_Kunth | F122: SIMP | G122: 5 | H122: 5 | I122: F | J122: 4 | K122: LS | L122: 2038409 | M122: 2534 | N122: 3494 | O122: =66000*L122/(M122*N122) -> 15195.17662
A123: 0 | B123: 2008-04-01 | C123: CF | D123: 1193 | E123: Casearia_javitensis_Kunth | F123: SIMP | G123: 5 | H123: 5 | I123: F | J123: 5 | K123: LS | L123: 2201470 | M123: 2534 | N123: 3494 | O123: =66000*L123/(M123*N123) -> 16410.70339
A124: 0 | B124: 2008-04-02 | C124: CF | D124: 1304 | E124: Casearia_javitensis_Kunth | F124: SIMP | G124: 5 | H124: 5 | I124: F | J124: 1 | K124: LS | L124: 1084605 | M124: 2534 | N124: 3494 | O124: =66000*L124/(M124*N124) -> 8085.111742
A125: 0 | B125: 2008-04-02 | C125: CF | D125: 1304 | E125: Casearia_javitensis_Kunth | F125: SIMP | G125: 5 | H125: 5 | I125: F | J125: 2 | K125: LS | L125: 1378086 | M125: 2534 | N125: 3494 | O125: =66000*L125/(M125*N125) -> 10272.84523
A126: 0 | B126: 2008-04-02 | C126: CF | D126: 1304 | E126: Casearia_javitensis_Kunth | F126: SIMP | G126: 5 | H126: 5 | I126: F | J126: 3 | K126: LS | L126: 1531495 | M126: 2534 | N126: 3494 | O126: =66000*L126/(M126*N126) -> 11416.42184
A127: 0 | B127: 2008-04-02 | C127: CF | D127: 1304 | E127: Casearia_javitensis_Kunth | F127: SIMP | G127: 5 | H127: 5 | I127: F | J127: 4 | K127: LS | L127: 1165164 | M127: 2534 | N127: 3494 | O127: =66000*L127/(M127*N127) -> 8685.633145
A128: 0 | B128: 2008-04-02 | C128: CF | D128: 1304 | E128: Casearia_javitensis_Kunth | F128: SIMP | G128: 5 | H128: 5 | I128: F | J128: 5 | K128: LS | L128: 921497 | M128: 2534 | N128: 3494 | O128: =66000*L128/(M128*N128) -> 6869.23462
A129: 0 | B129: 2008-04-02 | C129: CF | D129: 1388 | E129: Casearia_javitensis_Kunth | F129: SIMP | G129: 5 | H129: 5 | I129: F | J129: 1 | K129: LS | L129: 2003861 | M129: 2534 | N129: 3494 | O129: =66000*L129/(M129*N129) -> 14937.64098
A130: 0 | B130: 2008-04-02 | C130: CF | D130: 1388 | E130: Casearia_javitensis_Kunth | F130: SIMP | G130: 5 | H130: 5 | I130: F | J130: 2 | K130: LS | L130: 1699136 | M130: 2534 | N130: 3494 | O130: =66000*L130/(M130*N130) -> 12666.08989
A131: 0 | B131: 2008-04-02 | C131: CF | D131: 1388 | E131: Casearia_javitensis_Kunth | F131: SIMP | G131: 5 | H131: 5 | I131: F | J131: 3 | K131: LS | L131: 935882 | M131: 2534 | N131: 3494 | O131: =66000*L131/(M131*N131) -> 6976.466591
A132: 0 | B132: 2008-04-02 | C132: CF | D132: 1388 | E132: Casearia_javitensis_Kunth | F132: SIMP | G132: 5 | H132: 5 | I132: F | J132: 4 | K132: LS | L132: 1614220 | M132: 2534 | N132: 3494 | O132: =66000*L132/(M132*N132) -> 12033.08954
A133: 0 | B133: 2008-04-02 | C133: CF | D133: 1388 | E133: Casearia_javitensis_Kunth | F133: SIMP | G133: 5 | H133: 5 | I133: F | J133: 5 | K133: LS | L133: 972253 | M133: 2534 | N133: 3494 | O133: =66000*L133/(M133*N133) -> 7247.591654
A134: 0 | B134: 2008-04-02 | C134: CF | D134: 5135 | E134: Casearia_javitensis_Kunth | F134: SIMP | G134: 5 | H134: 5 | I134: F | J134: 1 | K134: LS | L134: 1779546 | M134: 2534 | N134: 3494 | O134: =66000*L134/(M134*N134) -> 13265.50058
A135: 0 | B135: 2008-04-02 | C135: CF | D135: 5135 | E135: Casearia_javitensis_Kunth | F135: SIMP | G135: 5 | H135: 5 | I135: F | J135: 2 | K135: LS | L135: 1686800 | M135: 2534 | N135: 3494 | O135: =66000*L135/(M135*N135) -> 12574.13204
A136: 0 | B136: 2008-04-02 | C136: CF | D136: 5135 | E136: Casearia_javitensis_Kunth | F136: SIMP | G136: 5 | H136: 5 | I136: F | J136: 3 | K136: LS | L136: 1116736 | M136: 2534 | N136: 3494 | O136: =66000*L136/(M136*N136) -> 8324.630023
A137: 0 | B137: 2008-04-02 | C137: CF | D137: 5135 | E137: Casearia_javitensis_Kunth | F137: SIMP | G137: 5 | H137: 5 | I137: F | J137: 4 | K137: LS | L137: 1854805 | M137: 2534 | N137: 3494 | O137: =66000*L137/(M137*N137) -> 13826.51351
A138: 0 | B138: 2008-04-02 | C138: CF | D138: 5135 | E138: Casearia_javitensis_Kunth | F138: SIMP | G138: 5 | H138: 5 | I138: F | J138: 5 | K138: LS | L138: 1236446 | M138: 2534 | N138: 3494 | O138: =66000*L138/(M138*N138) -> 9216.999804
A139: 0 | B139: 2008-02-25 | C139: KM_41 | D139: 1417 | E139: Conceveiba_hostmannii_Benth. | F139: SIMP | G139: 5 | H139: 5 | I139: F | J139: 1 | K139: LS | L139: 13649266 | M139: 5072 | N139: 6990 | O139: =66000*L139/(M139*N139) -> 25409.54056
A140: 0 | B140: 2008-02-25 | C140: KM_41 | D140: 1417 | E140: Conceveiba_hostmannii_Benth. | F140: SIMP | G140: 5 | H140: 5 | I140: F | J140: 2 | K140: LS | L140: 18611501 | M140: 5072 | N140: 6990 | O140: =66000*L140/(M140*N140) -> 34647.26158
A141: 0 | B141: 2008-02-25 | C141: KM_41 | D141: 1417 | E141: Conceveiba_hostmannii_Benth. | F141: SIMP | G141: 5 | H141: 5 | I141: F | J141: 3 | K141: LS | L141: 18144803 | M141: 5072 | N141: 6990 | O141: =66000*L141/(M141*N141) -> 33778.45429
A142: 0 | B142: 2008-02-25 | C142: KM_41 | D142: 1417 | E142: Conceveiba_hostmannii_Benth. | F142: SIMP | G142: 5 | H142: 5 | I142: F | J142: 4 | K142: LS | L142: 11951384 | M142: 5072 | N142: 6990 | O142: =66000*L142/(M142*N142) -> 22248.75509
A143: 0 | B143: 2008-02-25 | C143: KM_41 | D143: 1417 | E143: Conceveiba_hostmannii_Benth. | F143: SIMP | G143: 5 | H143: 5 | I143: F | J143: 5 | K143: LS | L143: 9153348 | M143: 5072 | N143: 6990 | O143: =66000*L143/(M143*N143) -> 17039.91755
A144: 0 | B144: 2008-04-17 | C144: FL | D144: 6517 | E144: Conceveiba_hostmannii_Benth. | F144: SIMP | G144: 5 | H144: 5 | I144: F | J144: 1 | K144: LS | L144: 855395 | M144: 1268 | N144: 1748 | O144: =66000*L144/(M144*N144) -> 25471.23256
A145: 0 | B145: 2008-04-17 | C145: FL | D145: 6517 | E145: Conceveiba_hostmannii_Benth. | F145: SIMP | G145: 5 | H145: 5 | I145: F | J145: 2 | K145: LS | L145: 529297 | M145: 1268 | N145: 1748 | O145: =66000*L145/(M145*N145) -> 15760.9607
A146: 0 | B146: 2008-04-17 | C146: FL | D146: 6517 | E146: Conceveiba_hostmannii_Benth. | F146: SIMP | G146: 5 | H146: 5 | I146: F | J146: 3 | K146: LS | L146: 526181 | M146: 1268 | N146: 1748 | O146: =66000*L146/(M146*N146) -> 15668.17508
A147: 0 | B147: 2008-04-17 | C147: FL | D147: 6517 | E147: Conceveiba_hostmannii_Benth. | F147: SIMP | G147: 5 | H147: 5 | I147: F | J147: 4 | K147: LS | L147: 524503 | M147: 1268 | N147: 1748 | O147: =66000*L147/(M147*N147) -> 15618.209
A148: 0 | B148: 2008-04-17 | C148: FL | D148: 6517 | E148: Conceveiba_hostmannii_Benth. | F148: SIMP | G148: 5 | H148: 5 | I148: F | J148: 5 | K148: LS | L148: 519139 | M148: 1268 | N148: 1748 | O148: =66000*L148/(M148*N148) -> 15458.48432
A149: 0 | B149: 2008-02-23 | C149: KM_37 | D149: 231907 | E149: Conceveiba_hostmannii_Benth. | F149: SIMP | G149: 5 | H149: 5 | I149: F | J149: 1 | K149: LS | L149: 2939787 | M149: 2535 | N149: 3495 | O149: =66000*L149/(M149*N149) -> 21899.52307
A150: 0 | B150: 2008-02-23 | C150: KM_37 | D150: 231907 | E150: Conceveiba_hostmannii_Benth. | F150: SIMP | G150: 5 | H150: 5 | I150: F | J150: 2 | K150: LS | L150: 3190951 | M150: 2535 | N150: 3495 | O150: =66000*L150/(M150*N150) -> 23770.53339
A151: 0 | B151: 2008-02-23 | C151: KM_37 | D151: 231907 | E151: Conceveiba_hostmannii_Benth. | F151: SIMP | G151: 5 | H151: 5 | I151: F | J151: 3 | K151: LS | L151: 2200183 | M151: 2535 | N151: 3495 | O151: =66000*L151/(M151*N151) -> 16389.94879
A152: 0 | B152: 2008-02-23 | C152: KM_37 | D152: 231907 | E152: Conceveiba_hostmannii_Benth. | F152: SIMP | G152: 5 | H152: 5 | I152: F | J152: 4 | K152: LS | L152: 2602665 | M152: 2535 | N152: 3495 | O152: =66000*L152/(M152*N152) -> 19388.18092
A153: 0 | B153: 2008-02-23 | C153: KM_37 | D153: 231907 | E153: Conceveiba_hostmannii_Benth. | F153: SIMP | G153: 5 | H153: 5 | I153: F | J153: 5 | K153: LS | L153: 2295186 | M153: 2535 | N153: 3495 | O153: =66000*L153/(M153*N153) -> 17097.66006
A154: 0 | B154: 2008-01-26 | C154: KM_41 | D154: 24 | E154: Corythophora_alta_R._Knuth | F154: SIMP | G154: 5 | H154: 5 | I154: F | J154: 1 | K154: LS | L154: 4610221 | M154: 5072 | N154: 6990 | O154: =66000*L154/(M154*N154) -> 8582.410034
A155: 0 | B155: 2008-01-26 | C155: KM_41 | D155: 24 | E155: Corythophora_alta_R._Knuth | F155: SIMP | G155: 5 | H155: 5 | I155: F | J155: 2 | K155: LS | L155: 5766138 | M155: 5072 | N155: 6990 | O155: =66000*L155/(M155*N155) -> 10734.27079
A156: 0 | B156: 2008-01-26 | C156: KM_41 | D156: 24 | E156: Corythophora_alta_R._Knuth | F156: SIMP | G156: 5 | H156: 5 | I156: F | J156: 3 | K156: LS | L156: 3476021 | M156: 5072 | N156: 6990 | O156: =66000*L156/(M156*N156) -> 6470.977749
A157: 0 | B157: 2008-01-26 | C157: KM_41 | D157: 24 | E157: Corythophora_alta_R._Knuth | F157: SIMP | G157: 5 | H157: 5 | I157: F | J157: 4 | K157: LS | L157: 4494226 | M157: 5072 | N157: 6990 | O157: =66000*L157/(M157*N157) -> 8366.473173
A158: 0 | B158: 2008-01-26 | C158: KM_41 | D158: 24 | E158: Corythophora_alta_R._Knuth | F158: SIMP | G158: 5 | H158: 5 | I158: F | J158: 5 | K158: LS | L158: 4887691 | M158: 5072 | N158: 6990 | O158: =66000*L158/(M158*N158) -> 9098.949547
A159: 0 | B159: 2008-03-12 | C159: CF | D159: 421 | E159: Corythophora_alta_R._Knuth | F159: SIMP | G159: 5 | H159: 5 | I159: F | J159: 1 | K159: LS | L159: 1547433 | M159: 2535 | N159: 3495 | O159: =66000*L159/(M159*N159) -> 11527.38096
A160: 0 | B160: 2008-03-12 | C160: CF | D160: 421 | E160: Corythophora_alta_R._Knuth | F160: SIMP | G160: 5 | H160: 5 | I160: F | J160: 2 | K160: LS | L160: 1340590 | M160: 2535 | N160: 3495 | O160: =66000*L160/(M160*N160) -> 9986.533594
A161: 0 | B161: 2008-03-12 | C161: CF | D161: 421 | E161: Corythophora_alta_R._Knuth | F161: SIMP | G161: 5 | H161: 5 | I161: F | J161: 3 | K161: LS | L161: 884554 | M161: 2535 | N161: 3495 | O161: =66000*L161/(M161*N161) -> 6589.358593
A162: 0 | B162: 2008-03-12 | C162: CF | D162: 421 | E162: Corythophora_alta_R._Knuth | F162: SIMP | G162: 5 | H162: 5 | I162: F | J162: 4 | K162: LS | L162: 963041 | M162: 2535 | N162: 3495 | O162: =66000*L162/(M162*N162) -> 7174.036282
A163: 0 | B163: 2008-03-12 | C163: CF | D163: 421 | E163: Corythophora_alta_R._Knuth | F163: SIMP | G163: 5 | H163: 5 | I163: F | J163: 5 | K163: LS | L163: 833918 | M163: 2535 | N163: 3495 | O163: =66000*L163/(M163*N163) -> 6212.152949
A164: 0 | B164: 2008-03-14 | C164: CF | D164: 684 | E164: Corythophora_alta_R._Knuth | F164: SIMP | G164: 5 | H164: 5 | I164: F | J164: 1 | K164: LS | L164: 1033592 | M164: 2535 | N164: 3495 | O164: =66000*L164/(M164*N164) -> 7699.595872
A165: 0 | B165: 2008-03-14 | C165: CF | D165: 684 | E165: Corythophora_alta_R._Knuth | F165: SIMP | G165: 5 | H165: 5 | I165: F | J165: 2 | K165: LS | L165: 959785 | M165: 2535 | N165: 3495 | O165: =66000*L165/(M165*N165) -> 7149.781175
A166: 0 | B166: 2008-03-14 | C166: CF | D166: 684 | E166: Corythophora_alta_R._Knuth | F166: SIMP | G166: 5 | H166: 5 | I166: F | J166: 3 | K166: LS | L166: 1342350 | M166: 2535 | N166: 3495 | O166: =66000*L166/(M166*N166) -> 9999.644463
A167: 0 | B167: 2008-03-14 | C167: CF | D167: 684 | E167: Corythophora_alta_R._Knuth | F167: SIMP | G167: 5 | H167: 5 | I167: F | J167: 4 | K167: LS | L167: 1297045 | M167: 2535 | N167: 3495 | O167: =66000*L167/(M167*N167) -> 9662.15134
A168: 0 | B168: 2008-03-14 | C168: CF | D168: 684 | E168: Corythophora_alta_R._Knuth | F168: SIMP | G168: 5 | H168: 5 | I168: F | J168: 5 | K168: LS | L168: 1128099 | M168: 2535 | N168: 3495 | O168: =66000*L168/(M168*N168) -> 8403.612261
A169: 0 | B169: 2008-03-14 | C169: CF | D169: 882 | E169: Corythophora_alta_R._Knuth | F169: SIMP | G169: 5 | H169: 5 | I169: F | J169: 1 | K169: LS | L169: 290974 | M169: 1268 | N169: 1748 | O169: =66000*L169/(M169*N169) -> 8664.378939
A170: 0 | B170: 2008-03-14 | C170: CF | D170: 882 | E170: Corythophora_alta_R._Knuth | F170: SIMP | G170: 5 | H170: 5 | I170: F | J170: 2 | K170: LS | L170: 236916 | M170: 1268 | N170: 1748 | O170: =66000*L170/(M170*N170) -> 7054.685301
A171: 0 | B171: 2008-03-14 | C171: CF | D171: 882 | E171: Corythophora_alta_R._Knuth | F171: SIMP | G171: 5 | H171: 5 | I171: F | J171: 3 | K171: LS | L171: 265377 | M171: 1268 | N171: 1748 | O171: =66000*L171/(M171*N171) -> 7902.173011
A172: 0 | B172: 2008-03-14 | C172: CF | D172: 882 | E172: Corythophora_alta_R._Knuth | F172: SIMP | G172: 5 | H172: 5 | I172: F | J172: 4 | K172: LS | L172: 189578 | M172: 1268 | N172: 1748 | O172: =66000*L172/(M172*N172) -> 5645.094168
A173: 0 | B173: 2008-03-14 | C173: CF | D173: 882 | E173: Corythophora_alta_R._Knuth | F173: SIMP | G173: 5 | H173: 5 | I173: F | J173: 5 | K173: LS | L173: 161186 | M173: 1268 | N173: 1748 | O173: =66000*L173/(M173*N173) -> 4799.661082
A174: 0 | B174: 2008-01-27 | C174: KM_41 | D174: 1323 | E174: Corythophora_alta_R._Knuth | F174: SIMP | G174: 5 | H174: 5 | I174: F | J174: 1 | K174: LS | L174: 4396348 | M174: 5072 | N174: 6990 | O174: =66000*L174/(M174*N174) -> 8184.263008
A175: 0 | B175: 2008-01-27 | C175: KM_41 | D175: 1323 | E175: Corythophora_alta_R._Knuth | F175: SIMP | G175: 5 | H175: 5 | I175: F | J175: 2 | K175: LS | L175: 4492245 | M175: 5072 | N175: 6990 | O175: =66000*L175/(M175*N175) -> 8362.785333
A176: 0 | B176: 2008-01-27 | C176: KM_41 | D176: 1323 | E176: Corythophora_alta_R._Knuth | F176: SIMP | G176: 5 | H176: 5 | I176: F | J176: 3 | K176: LS | L176: 6178611 | M176: 5072 | N176: 6990 | O176: =66000*L176/(M176*N176) -> 11502.13255
A177: 0 | B177: 2008-01-27 | C177: KM_41 | D177: 1323 | E177: Corythophora_alta_R._Knuth | F177: SIMP | G177: 5 | H177: 5 | I177: F | J177: 4 | K177: LS | L177: 4243510 | M177: 5072 | N177: 6990 | O177: =66000*L177/(M177*N177) -> 7899.739037
A178: 0 | B178: 2008-01-27 | C178: KM_41 | D178: 1323 | E178: Corythophora_alta_R._Knuth | F178: SIMP | G178: 5 | H178: 5 | I178: F | J178: 5 | K178: LS | L178: 3639809 | M178: 5072 | N178: 6990 | O178: =66000*L178/(M178*N178) -> 6775.886293
A179: 0 | B179: 2008-04-01 | C179: CF | D179: 2395 | E179: Corythophora_alta_R._Knuth | F179: SIMP | G179: 5 | H179: 5 | I179: F | J179: 1 | K179: LS | L179: 1099525 | M179: 2534 | N179: 3494 | O179: =66000*L179/(M179*N179) -> 8196.331833
A180: 0 | B180: 2008-04-01 | C180: CF | D180: 2395 | E180: Corythophora_alta_R._Knuth | F180: SIMP | G180: 5 | H180: 5 | I180: F | J180: 2 | K180: LS | L180: 1152003 | M180: 2534 | N180: 3494 | O180: =66000*L180/(M180*N180) -> 8587.525396
A181: 0 | B181: 2008-04-01 | C181: CF | D181: 2395 | E181: Corythophora_alta_R._Knuth | F181: SIMP | G181: 5 | H181: 5 | I181: F | J181: 3 | K181: LS | L181: 959406 | M181: 2534 | N181: 3494 | O181: =66000*L181/(M181*N181) -> 7151.824596
A182: 0 | B182: 2008-04-01 | C182: CF | D182: 2395 | E182: Corythophora_alta_R._Knuth | F182: SIMP | G182: 5 | H182: 5 | I182: F | J182: 4 | K182: LS | L182: 1004540 | M182: 2534 | N182: 3494 | O182: =66000*L182/(M182*N182) -> 7488.272827
A183: 0 | B183: 2008-04-01 | C183: CF | D183: 2395 | E183: Corythophora_alta_R._Knuth | F183: SIMP | G183: 5 | H183: 5 | I183: F | J183: 5 | K183: LS | L183: 978036 | M183: 2534 | N183: 3494 | O183: =66000*L183/(M183*N183) -> 7290.700622
A184: 0 | B184: 2007-10-27 | C184: KM_37 | D184: 230545 | E184: Corythophora_alta_R._Knuth | F184: SIMP | G184: 5 | H184: 5 | I184: F | J184: 1 | K184: LS | L184: 4131313 | M184: 5104 | N184: 7020 | O184: =66000*L184/(M184*N184) -> 7609.993
A185: 0 | B185: 2007-10-27 | C185: KM_37 | D185: 230545 | E185: Corythophora_alta_R._Knuth | F185: SIMP | G185: 5 | H185: 5 | I185: F | J185: 2 | K185: LS | L185: 3906559 | M185: 5104 | N185: 7020 | O185: =66000*L185/(M185*N185) -> 7195.989906
A186: 0 | B186: 2007-10-27 | C186: KM_37 | D186: 230545 | E186: Corythophora_alta_R._Knuth | F186: SIMP | G186: 5 | H186: 5 | I186: F | J186: 3 | K186: LS | L186: 2481620 | M186: 5104 | N186: 7020 | O186: =66000*L186/(M186*N186) -> 4571.212791
A187: 0 | B187: 2007-10-27 | C187: KM_37 | D187: 230545 | E187: Corythophora_alta_R._Knuth | F187: SIMP | G187: 5 | H187: 5 | I187: F | J187: 4 | K187: LS | L187: 2568295 | M187: 5104 | N187: 7020 | O187: =66000*L187/(M187*N187) -> 4730.870542
A188: 0 | B188: 2007-10-27 | C188: KM_37 | D188: 230545 | E188: Corythophora_alta_R._Knuth | F188: SIMP | G188: 5 | H188: 5 | I188: F | J188: 5 | K188: LS | L188: 2406898 | M188: 5104 | N188: 7020 | O188: =66000*L188/(M188*N188) -> 4433.572797
A189: 0 | B189: 2008-02-26 | C189: KM_41 | D189: 1773 | E189: Corythophora_rimosa_W._A._Rodrigues | F189: SIMP | G189: 5 | H189: 5 | I189: F | J189: 1 | K189: LS | L189: 77244 | M189: 800 | N189: 581 | O189: =66000*L189/(M189*N189) -> 10968.3821
A190: 0 | B190: 2008-02-26 | C190: KM_41 | D190: 1773 | E190: Corythophora_rimosa_W._A._Rodrigues | F190: SIMP | G190: 5 | H190: 5 | I190: F | J190: 2 | K190: LS | L190: 70057 | M190: 800 | N190: 581 | O190: =66000*L190/(M190*N190) -> 9947.85284
A191: 0 | B191: 2008-02-26 | C191: KM_41 | D191: 1773 | E191: Corythophora_rimosa_W._A._Rodrigues | F191: SIMP | G191: 5 | H191: 5 | I191: F | J191: 3 | K191: LS | L191: 76587 | M191: 800 | N191: 581 | O191: =66000*L191/(M191*N191) -> 10875.09036
A192: 0 | B192: 2008-02-26 | C192: KM_41 | D192: 1773 | E192: Corythophora_rimosa_W._A._Rodrigues | F192: SIMP | G192: 5 | H192: 5 | I192: F | J192: 4 | K192: LS | L192: 97061 | M192: 800 | N192: 581 | O192: =66000*L192/(M192*N192) -> 13782.32788
A193: 0 | B193: 2008-02-26 | C193: KM_41 | D193: 1773 | E193: Corythophora_rimosa_W._A._Rodrigues | F193: SIMP | G193: 5 | H193: 5 | I193: F | J193: 5 | K193: LS | L193: 83201 | M193: 800 | N193: 581 | O193: =66000*L193/(M193*N193) -> 11814.25559
A194: 0 | B194: 2008-05-27 | C194: KM_37 | D194: 252693 | E194: Couepia_longipendula_Pilger | F194: SIMP | G194: 5 | H194: 5 | I194: F | J194: 1 | K194: LS | L194: 105272 | M194: 1268 | N194: 1748 | O194: =66000*L194/(M194*N194) -> 3134.701037
A195: 0 | B195: 2008-05-27 | C195: KM_37 | D195: 252693 | E195: Couepia_longipendula_Pilger | F195: SIMP | G195: 5 | H195: 5 | I195: F | J195: 2 | K195: LS | L195: 87779 | M195: 1268 | N195: 1748 | O195: =66000*L195/(M195*N195) -> 2613.809202
A196: 0 | B196: 2008-05-27 | C196: KM_37 | D196: 252693 | E196: Couepia_longipendula_Pilger | F196: SIMP | G196: 5 | H196: 5 | I196: F | J196: 3 | K196: LS | L196: 101124 | M196: 1268 | N196: 1748 | O196: =66000*L196/(M196*N196) -> 3011.185384
A197: 0 | B197: 2008-05-27 | C197: KM_37 | D197: 252693 | E197: Couepia_longipendula_Pilger | F197: SIMP | G197: 5 | H197: 5 | I197: F | J197: 4 | K197: LS | L197: 204347 | M197: 1268 | N197: 1748 | O197: =66000*L197/(M197*N197) -> 6084.873023
A198: 0 | B198: 2008-05-27 | C198: KM_37 | D198: 252693 | E198: Couepia_longipendula_Pilger | F198: SIMP | G198: 5 | H198: 5 | I198: F | J198: 5 | K198: LS | L198: 103244 | M198: 1268 | N198: 1748 | O198: =66000*L198/(M198*N198) -> 3074.31296
A199: 0 | B199: 2008-03-14 | C199: CF | D199: 412 | E199: Cynometra_longicuspis_Ducke | F199: COMP | G199: 5 | H199: 10 | I199: F | J199: 1 | K199: LS | L199: 315612 | M199: 2535 | N199: 3495 | O199: =66000*L199/(M199*N199) -> 2351.106483
A200: 0 | B200: 2008-03-14 | C200: CF | D200: 412 | E200: Cynometra_longicuspis_Ducke | F200: COMP | G200: 5 | H200: 10 | I200: F | J200: 2 | K200: LS | L200: 239326 | M200: 2535 | N200: 3495 | O200: =66000*L200/(M200*N200) -> 1782.82483
... 4300 more rows

Sheet TD_LS
A3: Rótulos de Linha
A4: Abarema_cochleata_(Willd.)_Barneby_&_J._W._Grimes
A5: Aniba_burchellii/panurensis_s.l.
A6: Aniba_canelilla_(Kunth)_Mez
A7: Anisophyllea_manausensis_Pires_&_W._A._Rodrigues
A8: Aspidosperma_carapanauba_Pichon
A9: Aspidosperma_oblongum_A._DC.
A10: Bocageopsis_multiflora_(Mart.)_R._E._Fries
A11: Bocoa_viridiflora_(Ducke)_Cowan
A12: Brosimum_guianense_(Aubl.)_Huber
A13: Brosimum_parinarioides_Ducke
A14: Brosimum_rubescens_Taub.
A15: Buchenavia_grandis_Ducke
A16: Cariniana_decandra_Ducke
A17: Caryocar_villosum_(Aubl.)_Pers.
A18: Casearia_javitensis_Kunth
A19: Chaunochiton_kappleri_(Engl.)_Ducke
A20: Chrysophyllum_lucentifolium_Cronquist
A21: Chrysophyllum_pomiferum_(Eyma)_T._D._Penn.
A22: Chrysophyllum_wilsonii_Penn.
A23: Clarisia_racemosa_Ruiz_&_Pav.
A24: Conceveiba_hostmannii_Benth.
A25: Corythophora_alta_R._Knuth
A26: Corythophora_rimosa_W._A._Rodrigues
A27: Couepia_excelsa_Ducke
A28: Couepia_longipendula_Pilger
A29: Cynometra_longicuspis_Ducke
A30: Dicorynia_guianensis_Amshoff
A31: Dinizia_excelsa_Ducke
A32: Dipteryx_magnifica_(Ducke)_Ducke
A33: Dipteryx_odorata_(Aubl.)_Willd.
A34: Drypetes_variabilis_Uittien
A35: Duckeodendron_cestroides_Kuhlm.
A36: Duguetia_echinophora_R._E._Fries
A37: Duguetia_manausensis_Maas_&_Boon
A38: Dussia_discolor_(Benth.)_Amshoff
A39: Ecclinusa_guianensis_Eyma
A40: Endopleura_uchi_(Huber)_Cuatrec
A41: Eperua_glabriflora_(Ducke)_Cowan
A42: Erisma_bicolor_Ducke
A43: Eschweilera_amazoniciformis_S._A._Mori
A44: Eschweilera_atropetiolata_S._A._Mori
A45: Eschweilera_collina_Eyma
A46: Eschweilera_coriacea_(DC.)_S._A._Mori
A47: Eschweilera_cyathiformis_S._A._Mori
A48: Eschweilera_grandiflora_(Aubl.)_Sandw.
A49: Eschweilera_micrantha_(O._Berg)_Miers
A50: Eschweilera_pseudodecolorans_S._A._Mori
A51: Eschweilera_rankiniae_S._A._Mori
A52: Eschweilera_romeu-cardosoi_S._A._Mori
A53: Eschweilera_truncata_A._C._Smith
A54: Eschweilera_wachenheimii_(Benoist)_Sandw.
A55: Fusaea_longifolia_(Aubl.)_Saff.
A56: Geissospermum_argenteum_Woodson
A57: Glycydendron_amazonicum_Ducke
A58: Goupia_glabra_Aubl.
A59: Guarea_convergens_Penn.
A60: Guarea_sp._3
A61: Heisteria_laxiflora_Engl.
A62: Helicostylis_tomentosa_(Poepp._&_Endl.)_Rusby
A63: Hevea_guianensis_Aubl.
A64: Inga_alba_(Sw.)_Willd.
A65: Inga_capitata_Desv.
A66: Inga_paraensis_Ducke
A67: Inga_rubiginosa_(L._C._Rich.)_DC.
A68: Inga_sp._7
A69: Lecythis_chartacea_Berg
A70: Lecythis_prancei_S._A._Mori
A71: Licania_caudata_Prance
A72: Licania_heteromorpha_Benth.
A73: Licania_impressa_Prance
A74: Licania_sp._9
A75: Licaria_cannella_(Meissn.)_Kosterm.
A76: Lueheopsis_rosea_(Ducke)_Burret
A77: Macrolobium_angustifolium_(Benth.)_Cowan
A78: Manilkara_bidentata_(A._DC.)_A._Chev.
A79: Manilkara_huberi_(Ducke)_A._Chev.
A80: Maquira_sclerophylla_(Ducke)_C._C._Berg
A81: Mezilaurus_duckei_van_der_Werff
A82: Mezilaurus_sp._nov._1
A83: Miconia_burchellii_Triana
A84: Micropholis_casiquiarensis/mensalis
A85: Micropholis_cylindrocarpa_(Poepp.)_Pierre
A86: Micropholis_guyanensis_(A._DC.)_Pierre
A87: Micropholis_venulosa_(Mart._&_Eichler)_Pierre
A88: Minquartia_guianensis_Aubl.
A89: Mouriri_angulicosta/duckeana/duckeanoides
A90: Myrcia_grandis_McVaugh
A91: Naucleopsis_caloneura_(Huber)_Ducke
A92: Neea_aff._madeirana_Standl.
A93: Neea_sp._2
A94: Neea_sp._3
A95: Ocotea_cinerea_van_der_Werff
A96: Ocotea_nigrescens_Vicentini
A97: Ocotea_percurrens_Vicentini
A98: Onychopetalum_amazonicum_R._E._Fries
A99: Osteophloeum_platyspermum_(A._DC.)_Warb.
A100: Paramachaerium_ormosioides_(Ducke)_Ducke
A101: Parkia_decussata_Ducke
A102: Parkia_pendula_(Willd.)_Walp.
A103: Pausandra_macropetala_Ducke
A104: Peltogyne_catingae_Ducke
A105: Peltogyne_excelsa_Ducke
A106: Pouteria_aff._engleri_Eyma
A107: Pouteria_anomala_(Pires)_T._D._Penn.
A108: Pouteria_cladantha_Sandw.
A109: Pouteria_durlandii/peruviensis
A110: Pouteria_engleri_Eyma
A111: Pouteria_filipes_Eyma
A112: Pouteria_fimbriata_Baehni
A113: Pouteria_flavilatex_Penn.
A114: Pouteria_guianensis_Aubl.
A115: Pouteria_hispida_Eyma
A116: Pouteria_macrophylla_(Lam.)_Eyma
A117: Pouteria_manaosensis_(Aubrev._&_Pellegr.)_T._D._Penn.
A118: Pouteria_pentamera_Penn.
A119: Pouteria_reticulata_(Engl.)_Eyma
A120: Pouteria_retinervis_T._D._Penn.
A121: Pouteria_rostrata_(Huber)_Baehni
A122: Pouteria_sp._9
A123: Protium_altsonii_Sandwith
A124: Protium_apiculatum_Swart
A125: Protium_decandrum_(Aubl.)_Marchand
A126: Protium_guianense_(Aubl.)_Marchand
A127: Protium_hebetatum_Daly
A128: Protium_sagotianum_Marchand
A129: Protium_tenuifolium_(Engl.)_Engl.
A130: Pseudolmedia_laevis_(Ruiz_&_Pav.)_J._F._Macbr.
A131: Pseudopiptadenia_psilostachya_(DC.)_Lewis_&_Lima
A132: Pseudopiptadenia_suaveolens_(Miq.)_Grimes
A133: Qualea_labouriauana_Paula
A134: Qualea_paraensis_Ducke
A135: Rhodostemonodaphne_grandis_(Mez)_Rohwer
A136: Rinorea_flavescens_(Aubl.)_Kuntze
A137: Rinorea_guianensis_Aubl.
A138: Rinorea_sp._1
A139: Sacoglottis_mattogrossensis_Malme
A140: Sclerolobium_melinonii_Harms
A141: Sclerolobium_sp._1
A142: Sclerolobium_sp._5
A143: Scleronema_micranthum_(Ducke)_Ducke
A144: Sloanea_eichleri_K._Schum.
A145: Sloanea_floribunda_Spruce_ex_Benth.
A146: Swartzia_polyphylla_DC.
A147: Swartzia_recurva_Poepp.
A148: Swartzia_reticulata_Ducke
A149: Swartzia_schomburgkii_Benth.
A150: Tachigali_plumbea_Ducke
A151: Theobroma_sylvestris_Aubl._ex_Mart.
A152: Trymatococcus_amazonicus_Poepp._&_Endl.
A153: Unonopsis_duckei_R._E._Fries
A154: Vantanea_parviflora_Lam.
A155: Virola_calophylla_Warb.
A156: Vochysia_obidensis_(Huber)_Ducke
A157: Zygia_racemosa_(Ducke)_Barn._&_Grimes
A158: Caryocar_pallidum_A._C._Smith
A159: Couratari_stellata_A._C._Smith
A160: Total geral

Sheet Legenda
A1: SAÍDA | B1: *
A3: DATA | B3: * | D3: *Dados que virão com a planilha geral.
A5: LOCAL | B5: *
A7: PLACA | B7: *
A9: ESPÉCIE | B9: *
A11: TIPO DO OBJETO | B11: Dizer se é folha ou folíolo (F), pecíolo ou raque (P).
A13: FRAGMENTO | B13: Número da folha ou pecíolo analisado.
A15: TIPO DA ÁREA | B15: A área pode ser de dois tipos: AF, quando entram no cálculo o pecíolo ou a raque e não se preenche as herbivorias, e LS, quando não se contam
B16: pecíolos e as herbivorias são preenchidas; caso não haja perdas de área por herbivoria, pode-se colocar SM para as áreas dos objetos tipo F (folhas);
B17: no caso de ter-se dividido a folha ao meio, preencha esse campo com o nome MAF ou MLS;
B18: se houver menos do que 5 folhas coletadas, colocar o número de folhas e o tipo, por exemplo: 2AF ou 3MLS;
B19: caso o número de folíolos não bater com o número de cicatrizes na raque, coloque o número de folíolos escaneados barra o número de cicatrizes (ex: 13/21 AF).
A21: ÁREA (PX2) | B21: Resultado do programa (cálculo da área da folha em pixels).
A23: ALTURA DA IMAGEM | B23: ** | D23: **Dimensões do arquivo da imagem dada como "altura"x"largura".
A25: LARGURA DA IMAGEM | B25: **
A27: ÁREA (MM2) | B27: Célula contendo fórmula para transformar px2 em mm2.
A29: OBS | B29: Observações como número de folhas analisadas menor do que 5, folhas jovens ou muito velhas, herbivoradas etc.

Sheet CROKI
A1: SAÍDA | B1: STATUS
A2: 1 | B2: OK
A3: 2 | B3: OK
A4: 3 | B4: OK
A5: 4 | B5: OK | D5: *CONFERIR ESPÉCIES IMPARIPINADAS - PROBLEMA COM OS FOLÍOLOS TERMINAIS
A6: 5 | B6: OK
A7: 6 | B7: OK
A8: 7 | B8: OK
A9: 8 | B9: OK
A10: 9 | B10: OK
A11: 10 | B11: OK
A12: 11 | B12: OK
A13: AMIRA | B13: OK
